Workbook

Sheet список ТСО (hidden)
A1: № п/п | B1: Полное (сокращенное) наименование территориальной сетевой организации (ТСО)
A2: 1 | B2: Филиал открытого акционерного общества «Межрегиональная распределительная сетевая компания Урала»-«Челябэнерго» (Филиал ОАО «МРСК Урала»-«Челябэнерго»)
A3: 2 | B3: Общество с ограниченной ответственностью «АЭС Инвест» (ООО «АЭС Инвест»)
A4: 3 | B4: Акционерное общество «Автомобильный завод «Урал» (АО «Автомобильный завод «Урал», АО "АЗ "Урал")
A5: 4 | B5: Акционерное общество «Оборонэнерго» Филиал «Уральский» (АО «Оборонэнерго» Филиал «Уральский»)
A6: 5 | B6: Акционерное общество «Трансэнерго» (АО «Трансэнерго»)
A7: 6 | B7: Акционерное общество «Челябинское авиапредприятие» (АО «ЧАП»)
A8: 7 | B8: Акционерное общество «Челябинский электрометаллургический комбинат» (АО «ЧЭМК»)
A9: 8 | B9: Акционерное общество «Электросеть» (АО «Электросеть»)
A10: 9 | B10: Акционерное общество «Энергосетевая Компания ЧТПЗ» (АО «ЭСК ЧТПЗ» )
A11: 10 | B11: Муниципальное многоотраслевое предприятие коммунального хозяйства (ММПКХ)
A12: 11 | B12: Муниципальное предприятие «Горэлектросеть» г. Магнитогорска (МП «Горэлектросеть» г. Магнитогорска)
A13: 12 | B13: Муниципальное унитарное предприятие «Городская управляющая компания» (МУП «ГУК»)
A14: 13 | B14: Муниципальное унитарное предприятие «Копейские электрические сети» (МУП «КЭС»)
A15: 14 | B15: Муниципальное унитарное предприятие «Многоотраслевое производственное объединение энергосетей» города Трехгорного (МУП «МПОЭ» г. Трехгорного)
A16: 15 | B16: Муниципальное унитарное предприятие «Производственное объединение водоснабжения и водоотведения» г. Челябинска (МУП «ПОВВ»)
A17: 16 | B17: Муниципальное унитарное предприятие «Электротепловые сети» (МУП «ЭТС»)
A18: 17 | B18: Непубличное акционерное общество "Вишневогорский горно-обогатительный комбинат" (АО "Вишневогорский ГОК")
A19: 18 | B19: Открытое акционерное общество «Магнитогорский метизно-калибровочный завод «ММК-Метиз» (ОАО «ММК-Метиз»)
A20: 19 | B20: Открытое акционерное общество «Российские железные дороги» (Южно-Уральская дирекция по энергообеспечению – структурное подразделение Трансэнерго – филиала открытого акционерного общества «Российские железные дороги») (ОАО "РЖД" (Южно-Уральская дирекция по энергообеспечению – структурное подразделение Трансэнерго – филиала ОАО "РЖД")
A21: 20 | B21: Открытое акционерное общество «Челябинская электросетевая компания» (ОАО «ЧЭК»)
A22: 21 | B22: Открытое акционерное общество «Энергопром-Челябинский электродный завод» (ОАО «ЭПМ-ЧЭЗ», ОАО «ЭНЕРГОПРОМ-ЧЭЗ»)
A23: 22 | B23: Общество с ограниченной ответственностью "АТЭК74" (ООО "АТЭК74")
A24: 23 | B24: Общество с ограниченной ответственностью «Златэнерготелеком» (ООО «Златэнерготелеком»)
A25: 24 | B25: Общество с ограниченной ответственностью «Интернешенел Билдинг Констракшен» (ООО «ИБК»)
A26: 25 | B26: Общество с ограниченной ответственностью «Каслинская ЭнергоСбытовая Компания» (ООО «Каслинская ЭнергоСбытовая Компания»)
A27: 26 | B27: Общество с ограниченной ответственностью Завод стройиндустрии «КЕММА» (ООО «КЕММА»)
A28: 27 | B28: Общество с ограниченной ответственностью "Магнитогорская Сетевая Компания" (ООО "МСК")
A29: 28 | B29: Общество с ограниченной ответственностью «Металлстрой» (ООО «Металлстрой»)
A30: 29 | B30: Общество с ограниченной ответственностью «Механический завод» (ООО «Механический завод»)
A31: 30 | B31: Общество с ограниченной ответственностью «Объединенная электросетевая компания - Челябинск» (ООО «ОЭсК - Челябинск»)
A32: 31 | B32: Общество с ограниченной ответственностью «ПРОДВИЖЕНИЕ» (ООО «ПРОДВИЖЕНИЕ»)
A33: 32 | B33: Общество с ограниченной ответственностью «Региональная сетевая компания» (ООО «РСК»)
A34: 33 | B34: Общество с ограниченной ответственностью Сетевая компания «ЭнергоРесурс» (ООО СК «ЭнР»)
A35: 34 | B35: Общество с ограниченной ответственностью «Сети и системы» (ООО «Сети и системы»)
A36: 35 | B36: Общество с ограниченной ответственностью «Системы Передачи Электроэнергии» (Общество с ограниченной ответственностью «СПЭ»)
A37: 36 | B37: Общество с ограниченной ответственностью «ТДК» (ООО «ТДК»)
A38: 37 | B38: Общество с ограниченной ответственностью «ТЕХНОСЕРВИС-ПЭ» (ООО «ТЕХНОСЕРВИС-ПЭ»)
A39: 38 | B39: Общество с ограниченной ответственностью «Тепловые электрические сети и системы» (ООО «ТЭСиС»)
A40: 39 | B40: Общество с ограниченной ответственностью "Трансэнерго" (ООО "Трансэнерго")
A41: 40 | B41: Общество с ограниченной ответственностью «Управление энергоснабжения и связи» (ООО «УЭС»)
A42: 41 | B42: Общество с ограниченной ответственностью "Уральская энергетическая сетевая компания" (ООО "УЭСК")
A43: 42 | B43: Общество с ограниченной ответственностью «ЭДС» (ООО «ЭДС»)
A44: 43 | B44: Общество с ограниченной ответственностью «Электро ТК» (ООО «Электро ТК»)
A45: 44 | B45: Общество с ограниченной ответственностью «Электросетевая компания» (ООО «ЭСК») г. Екатеринбург
A46: 45 | B46: Общество с ограниченной ответственностью «Электросетевая компания» (ООО «Электросетевая компания») г. Сатка
A47: 46 | B47: Общество с ограниченной ответственностью «ЭНЕРГЕТИЧЕСКАЯ КОМПАНИЯ АЛЬТАИР» (ООО «ЭНЕРГЕТИЧЕСКАЯ КОМПАНИЯ АЛЬТАИР»)
A48: 47 | B48: Общество с ограниченной ответственностью «Энергоснабжающая сетевая компания» (ООО «ЭСК»)
A49: 48 | B49: Общество с ограниченной ответственностью «Энерготехсервис» (ООО «ЭТС»)
A50: 49 | B50: Общество с ограниченной ответственностью «Эффект ТК» (ООО «Эффект ТК»)
A51: 50 | B51: Общество с ограниченной ответственностью «Южноуральская сетевая компания» (ООО «ЮСК»)
A52: 51 | B52: Публичное акционерное общество «Магнитогорский металлургический комбинат» (ПАО «ММК»)
A53: 52 | B53: Публичное акционерное общество «Челябинский машиностроительный завод автомобильных прицепов «Уралавтоприцеп» (ПАО «Уралавтоприцеп»)
A54: 53 | B54: Публичное акционерное общество «Челябинский завод профилированного стального настила» (ПАО «ЧЗПСН-ПРОФНАСТИЛ»)
A55: 54 | B55: Федеральное государственное унитарное предприятие «Приборостроительный завод» (ФГУП «ПСЗ», ФГУП «Приборостроительный завод»)
A56: 55 | B56: Федеральное государственное унитарное предприятие «Производственное объединение «Маяк» (ФГУП «ПО «Маяк»)
A57: 56 | B57: Федеральное государственное унитарное предприятие «УСТЬ-КАТАВСКИЙ ВАГОНОСТРОИТЕЛЬНЫЙ ЗАВОД имени С.М. Кирова» – филиал АО «ГОСУДАРСТВЕННЫЙ КОСМИЧЕСКИЙ НАУЧНО-ПРОИЗВОДСТВЕННЫЙ ЦЕНТР имени М.В. Хруничева»

Sheet С1_СТС (hidden)
A1: Стандартизированная тарифная ставка на покрытие расходов сетевой организации за технологическое присоединение энергопринимающих устройств потребителей электрической энергии, объектов электросетевого хозяйства, принадлежащих сетевым организациям и иным лицам (С1) по мероприятиям, указанным в пункте 16 Методических указаний (кроме подпункта «б») (на территориях городских населенных пунктов и на территориях, не относящихся к территориям городских населенных пунктов)
A3: № п.п. | B3: Наименование стандартизированной тарифной ставки | D3: Единица измерения | E3: Значение (без учета НДС)
A4: 1 | B4: 2 | C4: 3 | D4: 4 | E4: 5
A5: 1 | B5: С1 | C5: Стандартизированная тарифная ставка на покрытие расходов сетевой организации за технологическое присоединение энергопринимающих устройств потребителей электрической энергии, объектов электросетевого хозяйства, принадлежащих сетевым организациям и иным лицам, по мероприятиям, указанным в пункте 16 Методических указаний (кроме подпункта «б»), | D5: руб. за одно присоединение | E5: 11644.28
B6: в том числе:
A7: 1.1. | B7: С1.1 | C7: Подготовка и выдача сетевой организацией технических условий Заявителю | D7: руб. за одно присоединение | E7: 5493.16
A8: 1.2. | B8: С1.2 | C8: Проверка сетевой организацией выполнения Заявителем технических условий (включая процедуры, предусмотренные подпунктами «г» - «е» пункта 7 Правил технологического присоединения) | D8: руб. за одно присоединение | E8: 6151.12

Sheet Расчет2 (hidden)
B2: Расчет платы за технологическое присоединение к электрическим сетям
B4: Наименование сетевой организации: | C4: =Калькулятор!C5 -> 0
B6: Уровень напряжения, кВ: | C6: =Калькулятор!C7 -> 0
B8: Максимальная мощность, кВт: | C8: =Калькулятор!C8 -> 0
B10: Наличие мероприятий по строительству «последней мили» со стороны сетевой организации
B11: =Калькулятор!B12 -> Строительство воздушных линий | C11: =Калькулятор!C12 -> 0
B12: =Калькулятор!B13 -> Строительство кабельных линий | C12: =Калькулятор!C13 -> 0
B13: =Калькулятор!B14 -> Строительство трансформаторных подстанций | C13: =Калькулятор!C14 -> 0
B14: =Калькулятор!B15 -> Строительство пунктов секционирования | C14: =Калькулятор!C15 -> 0
B15: =Калькулятор!B16 -> Строительство подстанций уровнем напряжения 35кВ и выше (ПС) | C15: =Калькулятор!C16 -> 0
B16: Строительство распределительных трансформаторных подстанций | C16: =Калькулятор!C17 -> 0
B17: Обеспечение средствами коммерческого учета электрической энергии (мощности) | C17: =Калькулятор!C18 -> 0
B19: Плата по стандартизированным тарифным ставкам: | D19: Примечания
B21: Ттп = С1 + С2 х L1 + С3 х L1 + С4 х k + С5 х N1 + С6 х N1 +С7 х NI + С8 х q
B23: С1, рублей/за одно присоединение | C23: ='C1'!E10 -> 13164.35 | D23: Единая для всех ТСО
B24: Плата за организационные мероприятия, руб. (без НДС) | C24: =C23 -> 13164.35 | D24: (в текущих ценах)
B25: Плата за строительство воздушных линий, руб. C2 | C25: =IF(C11="да",IF(Калькулятор!C9='ставки за 1кВт'!D4,'Воздушные линии'!L10,IF(Калькулятор!C9='ставки за 1кВт'!E4,'Воздушные линии'!L11,IF(Калькулятор!C9='ставки за 1кВт'!F4,'Воздушные линии'!L12,0))),0) -> 0 | D25: (в текущих ценах)
B26: Плата за строительство кабельных линий, руб. C3 | C26: =IF(C12="да",IF(Калькулятор!C9='ставки за 1кВт'!D4,'Кабельные линии'!N14,IF(Калькулятор!C9='ставки за 1кВт'!E4,'Кабельные линии'!N15,IF(Калькулятор!C9='ставки за 1кВт'!F4,'Кабельные линии'!N16,0))),0) -> 0 | D26: (в текущих ценах)
B27: Плата за строительство трансформаторных подстанций, руб. C5 | C27: =IF(C13="да",(IF(Калькулятор!C9='ставки за 1кВт'!D4,'Трансформаторные подстанции'!L19,IF(Калькулятор!C9='ставки за 1кВт'!E4,'Трансформаторные подстанции'!M19,IF(Калькулятор!C9='ставки за 1кВт'!F4,'Трансформаторные подстанции'!N19,0))))*Калькулятор!C8,0) -> 0 | D27: (в текущих ценах)
B28: Плата за строительство пунктов секционирования, руб. С4 | C28: =IF(C14="да",(IF(Калькулятор!C9='ставки за 1кВт'!D4,'Пункты секционирования'!M19,IF(Калькулятор!C9='ставки за 1кВт'!E4,'Пункты секционирования'!N19,IF(Калькулятор!C9='ставки за 1кВт'!F4,'Пункты секционирования'!O19,0)))),0) -> 0 | D28: (в текущих ценах)
B29: Плата за строительство источников питания, руб. С7 | C29: =IF(C15="да",IF(Калькулятор!C9='ставки за 1кВт'!D4,'Источники питания'!K8,IF(Калькулятор!C9='ставки за 1кВт'!E4,'Источники питания'!L8,IF(Калькулятор!C9='ставки за 1кВт'!F4,'Источники питания'!M8,0)))*Калькулятор!C8,0) -> 0 | D29: (в текущих ценах)
B30: Плата за строительство распределительных трансформаторных подстанций, руб. С6 | C30: =IF(C16="да",(IF(Калькулятор!C9='ставки за 1кВт'!D4,РТП!K10,IF(Калькулятор!C9='ставки за 1кВт'!E4,РТП!L10,IF(Калькулятор!C9='ставки за 1кВт'!F4,РТП!M10,0))))*Калькулятор!C8,0) -> 0 | D30: (в текущих ценах)
B31: Обеспечение средствами коммерческого учета электрической энергии (мощности), С8 | C31: =IF(C17="да",(IF(Калькулятор!C9='ставки за 1кВт'!D4,С8_ПУ!M16,IF(Калькулятор!C9='ставки за 1кВт'!E4,С8_ПУ!N16,IF(Калькулятор!C9='ставки за 1кВт'!F4,С8_ПУ!O16,0)))),0) -> 0 | D31: (в текущих ценах)
B32: Плата по стандартизированным тарифным ставкам, руб. (без НДС) | C32: =SUM(C24:C31) -> 13164.35 | D32: (в текущих ценах)
B34: Плата по ставкам за единицу максимальной мощности: | D34: Примечания
B36: Tтп = (С1maxN x N) + ( x N) + ( x N) + ( x N) + ( x N) + ( x N) + ( x N) + ( х N )
B38: С1, руб./кВт | C38: ='C1'!E24 -> 334.55 | D38: Единая для всех ТСО
B39: Плата за организационные мероприятия, руб. (без НДС) | C39: =C38*Калькулятор!C8 -> 0 | D39: (в текущих ценах)
B40: Плата за строительство воздушных линий, руб. C2 | C40: =IF(Калькулятор!C20="Да",IF(Калькулятор!C9='ставки за 1кВт'!D4,'ВЛ_1 кВт'!L10,IF(Калькулятор!C9='ставки за 1кВт'!E4,'ВЛ_1 кВт'!L11,IF(Калькулятор!C9='ставки за 1кВт'!F4,'ВЛ_1 кВт'!L12,0))),0) -> 0 | D40: (в текущих ценах)
B41: Плата за строительство кабельных линий, руб. C3 | C41: =IF(Калькулятор!C21="Да",IF(Калькулятор!C9='ставки за 1кВт'!D4,'КЛ_1 кВт'!N14,IF(Калькулятор!C9='ставки за 1кВт'!E4,'КЛ_1 кВт'!N15,IF(Калькулятор!C9='ставки за 1кВт'!F4,'КЛ_1 кВт'!N16,0))),0) -> 0 | D41: (в текущих ценах)
B42: Плата за строительство трансформаторных подстанций, руб. C5 | C42: =IF(Калькулятор!C22="Да",IF(Калькулятор!C9='ставки за 1кВт'!D4,'С5_ТП_1 кВт'!R7,IF(Калькулятор!C9='ставки за 1кВт'!E4,'С5_ТП_1 кВт'!R8,IF(Калькулятор!C9='ставки за 1кВт'!F4,'С5_ТП_1 кВт'!R9,0))),0) -> 0 | D42: (в текущих ценах)
B43: Плата за строительство пунктов секционирования, руб. C4 | C43: =IF(Калькулятор!C25="Да",IF(Калькулятор!C9='ставки за 1кВт'!D4,'C4_пункты секционирования'!K20,IF(Калькулятор!C9='ставки за 1кВт'!E4,'C4_пункты секционирования'!K21,IF(Калькулятор!C9='ставки за 1кВт'!F4,'C4_пункты секционирования'!K22,0))),0) -> 0 | D43: (в текущих ценах)
B44: Плата за строительство источников питания, руб. C7 | C44: =IF(Калькулятор!C24="Да",IF(Калькулятор!C9='ставки за 1кВт'!D4,'С7_ИП_1 кВт'!L9,IF(Калькулятор!C9='ставки за 1кВт'!E4,'С7_ИП_1 кВт'!L10,IF(Калькулятор!C9='ставки за 1кВт'!F4,'С7_ИП_1 кВт'!L11,0))),0) -> 0 | D44: (в текущих ценах)
B45: Плата за строительство распределительных трансформаторных подстанций, руб. С6 | C45: =IF(Калькулятор!C23="Да",IF(Калькулятор!C9='ставки за 1кВт'!D4,'С6_РТП_1 кВт'!K12,IF(Калькулятор!C9='ставки за 1кВт'!E4,'С6_РТП_1 кВт'!K13,IF(Калькулятор!C9='ставки за 1кВт'!F4,'С6_РТП_1 кВт'!K14,0))),0) -> 0 | D45: (в текущих ценах)
B46: Обеспечение средствами коммерческого учета электрической энергии (мощности), С8 | C46: =IF(Калькулятор!C26="Да",IF(Калькулятор!C9='ставки за 1кВт'!D4,'С8_1 кВт'!L8,IF(Калькулятор!C9='ставки за 1кВт'!E4,'С8_1 кВт'!L10,IF(Калькулятор!C9='ставки за 1кВт'!F4,'С8_1 кВт'!L12,0))),0) -> 0 | D46: (в текущих ценах)
B47: Плата по ставкам за единицу максимальной мощности, руб. (без НДС) | C47: =C39+C40+C41+C43+C44+C45+C42+C46 -> 0 | D47: (в текущих ценах)
B52: Внимание! Данные расчеты носят справочный характер и не могут являться окончательными для оплаты стоимости технологического присоединения. Калькулятор расчета платы за технологическое присоединение к электрическим сетям предназначен для примерного расчета стоимости размера платы за технологическое присоединение к электрическим сетям территориальных сетевых организаций Челябинской области.

Sheet C1 (hidden)
A1: Стандартизированная тарифная ставка на покрытие расходов сетевой организации за технологическое присоединение энергопринимающих устройств потребителей электрической энергии, объектов электросетевого хозяйства, принадлежащих сетевым организациям и иным лицам (С1) по мероприятиям, указанным в пункте 16 Методических указаний (кроме подпункта «б») (на территориях городских населенных пунктов и на территориях,не относящихся к территориям городских населенных пунктов)
A7: № п.п. | B7: Наименование стандартизированной тарифной ставки | D7: Единица измерения | E7: Значение
E8: (без учета НДС)
A9: 1 | B9: 2 | C9: 3 | D9: 4 | E9: 5
A10: 1 | B10: С1 | C10: Стандартизированная тарифная ставка на покрытие расходов сетевой организации за технологическое присоединение энергопринимающих устройств потребителей электрической энергии, объектов электросетевого хозяйства, принадлежащих сетевым организациям и иным лицам, по мероприятиям, указанным в пункте 16 Методических указаний (кроме подпункта «б»), | D10: руб. за одно присоединение | E10: 13164.35
B11: в том числе:
A12: 1.1. | B12: С1.1 | C12: Подготовка и выдача сетевой организацией технических условий Заявителю | D12: руб. за одно присоединение | E12: 6373.01
A13: 1.2. | B13: С1.2 | C13: Проверка сетевой организацией выполнения Заявителем технических условий (включая процедуры, предусмотренные подпунктами «г» - «е» пункта 7 Правил технологического присоединения) | D13: руб. за одно присоединение | E13: 6791.34
A16: Ставка за единицу максимальной мощности для определения платы за технологическое присоединение к электрическим сетям на уровне напряжения ниже 35 кВ и мощности менее 8 900 кВт на осуществление мероприятий, предусмотренных пунктом 16 (за исключением подпункта «б») Методических указаний (на территориях городских населенных пунктов и на территориях,не относящихся к территориям городских населенных пунктов)
A21: № п.п. | B21: Наименование стандартизированной тарифной ставки | D21: Единица измерения | E21: Значение
E22: (без учета НДС)
A23: 1 | B23: 2 | C23: 3 | D23: 4 | E23: 5
A24: 1 | B24: С1maxN | C24: Ставка за единицу максимальной мощности для определения платы за технологическое присоединение к электрическим сетям на уровне напряжения ниже 35 кВ и мощности менее 8 900 кВт на осуществление | D24: руб./кВт | E24: 334.55
C25: мероприятий, предусмотренных пунктом 16 (за исключением подпункта «б») Методических указаний,
B26: в том числе:
A27: 1.1. | C27: Подготовка и выдача сетевой организацией технических условий Заявителю | D27: руб./кВт | E27: 165
A28: 1.2. | C28: Проверка сетевой организацией выполнения Заявителем технических условий (включая процедуры, предусмотренные подпунктами «г» - «е» пункта 7 Правил технологического присоединения) | D28: руб./кВт | E28: 169.55

Sheet Воздушные линии (hidden)
A1: Стандартизированная тарифная ставка на покрытие расходов сетевой организации на строительство воздушных линий электропередачи
B3: Наименование стандартизированной тарифной ставки | C3: Размер ставки в отношении заявителей, осуществляющих технологическое присоединение энергопринимающих устройств свыше 150 кВт (на территориях городских населенных пунктов), руб./км | D3: Длина линии, км | E3: Размер ставки в отношении заявителей, осуществляющих технологическое присоединение энергопринимающих устройств свыше 150 кВт (на территориях, не относящихся к территориям городских населенных пунктов), руб./км | F3: Длина линии, км | G3: Размер ставки в отношении заявителей, осуществляющих технологическое присоединение энергопринимающих устройств не более 150 кВт, руб./км | H3: Длина линии, км
A4: № п/п | B4: 1 | C4: 2 | D4: 3 | E4: 4 | F4: 5 | G4: 6 | H4: 7
A5: 2 | B5: С2 - Стандартизированная тарифная ставка на покрытие расходов сетевой организации на строительство воздушных линий электропередачи
A6: 2.1. | B6: Материал опоры - деревянные | L6: =IF(Калькулятор!C9='ставки за 1кВт'!D4,D10,0) -> 0
A7: 2.1.1. | B7: Тип провода - изолированный
A8: 2.1.1.4. | B8: Материал провода - алюминиевый
A9: 2.1.1.4.1 | B9: Сечение провода - до 50 мм2 включительно
B10: 0,4 кВ и ниже | C10: 617936.12 | E10: 813416.15 | G10: 0 | K10: 1 | L10: =C10*D10+C11*D11+C13*D13+C14*D14+C16*D16+C20*D20+C21*D21+C24*D24+C26*D26+C31*D31+C33*D33+C39*D39+C40*D40+C45*D45+C46*D46+C48*D48+C51*D51+C52*D52+C54*D54+C55*D55+C57*D57+C58*D58+C62*D62+C63*D63+C64*D64+C66*D66+C67*D67+C68*D68+C70*D70+C71*D71+C74*D74+C75*D75+C77*D77 -> 0
B11: 1-20 кВ | C11: 3994630 | E11: 1107736.75 | G11: 0 | K11: 2 | L11: =E10*F10+E11*F11+E13*F13+E14*F14+E16*F16+E20*F20+E21*F21+E24*F24+E26*F26+E31*F31+E33*F33+E37*F37+E39*F39+E40*F40+E51*F51+E52*F52+E54*F54+E55*F55+E57*F57+E58*F58+E62*F62+E63*F63+E64*F64+E66*F66+E67*F67+E68*F68+E70*F70+E71*F71+E74*F74+E75*F75+E77*F77 -> 0
A12: 2.1.1.4.2 | B12: Сечение провода - от 50 мм2 до 100 мм2 включительно | K12: 3 | L12: =(H10+H11+H13+H14+H20+H21+H24+H26+H39+H40++H51+H52+H54+H55+H57+H58+H62+H64+H66+H67+H70+H71+H74+H75+H77+H31+H33+H16)*0 -> 0
B13: 0,4 кВ и ниже | C13: =945.89*1000 -> 945890 | E13: 1173716.82 | G13: 0
B14: 1-20 кВ | C14: 1864966.56 | E14: 1886443.28 | G14: 0
A15: 2.1.1.4.3 | B15: Сечение провода - от 100 мм2 до 200 мм2 включительно
B16: 0,4 кВ и ниже | C16: =1400.12*1000 -> 1400120 | E16: =1400.12*1000 -> 1400120 | G16: 0
A17: 2.1.2. | B17: Тип провода - неизолированный
A18: 2.1.2.3. | B18: Материал провода - сталеалюминиевый
A19: 2.1.2.3.1 | B19: Сечение провода - до 50 мм2 включительно
B20: 0,4 кВ и ниже | C20: =880.9*1000 -> 880900 | E20: 1049129.41 | G20: 0
B21: 1-20 кВ | C21: =1290.48*1000 -> 1290480 | E21: =2818.51*1000 -> 2818510 | G21: 0
A22: 2.1.2.4. | B22: Материал провода - алюминиевый
A23: 2.1.2.4.1 | B23: Сечение провода - до 50 мм2 включительно
B24: 0,4 кВ и ниже | C24: =126.53*1000 -> 126530 | E24: =833.15*1000 -> 833150 | G24: 0
A25: 2.1.2.4.2 | B25: Сечение провода - от 50мм2 до 100 мм2 включительно
B26: 1-20 кВ | C26: =10450.95*1000 -> 10450950 | E26: =10450.95*1000 -> 10450950 | G26: 0
A27: 2.2. | B27: Материал опоры - металлические
A28: 2.2.1. | B28: Тип провода – изолированный
A29: 2.2.1.4 | B29: Материал провода – алюминиевый
A30: 2.2.1.4.1 | B30: Сечение провода – до 50 мм2 включительно
B31: 0,4 кВ и ниже | C31: =2286.33*1000 -> 2286330 | E31: =2286.33*1000 -> 2286330 | G31: 0
A32: 2.2.1.4.2 | B32: Сечение провода - от 50мм2 до 100 мм2 включительно
B33: 0,4 кВ и ниже | C33: =2449.68*1000 -> 2449680 | E33: =2449.68*1000 -> 2449680 | G33: 0
A34: 2.2.2. | B34: Тип провода - неизолированный
A35: 2.2.2.3. | B35: Материал провода - сталеалюминиевый
A36: 2.2.2.3.2 | B36: Сечение провода - от 50 до 100 мм2 включительно
B37: 1-20 кВ | C37: - | E37: 5870590 | G37: 0
A38: 2.2.2.3.3 | B38: Сечение провода - от 100 до 200 мм2 включительно
B39: 1-20 кВ | C39: =15387.09*1000 -> 15387090 | E39: =16110.28*1000 -> 16110280 | G39: 0
B40: 110 кВ | C40: =12418.79*1000 -> 12418790 | E40: =12418.79*1000 -> 12418790 | G40: 0
A41: 2.3. | B41: Материал опоры - железобетонные
A42: 2.3.1 | B42: Тип провода - изолированный
A43: 2.3.1.3 | B43: Материал провода - сталеалюминиевый
A44: 2.3.1.3.1 | B44: Сечение провода – до 50 мм2 включительно
B45: 0,4 кВ и ниже | C45: 628870 | E45: - | G45: 0
B46: 1-20 кВ | C46: 660060 | E46: - | G46: 0
A47: 2.3.1.3.2 | B47: Сечение провода – от 50 мм2 до 100 мм2 включительно
B48: 1-20 кВ | C48: 909010 | E48: - | G48: 0
A49: 2.3.1.4 | B49: Материал провода - алюминиевый
A50: 2.3.1.4.1 | B50: Сечение провода - до 50 мм2 включительно
B51: 0,4 кВ и ниже | C51: 777500.94 | E51: 793546.36 | G51: 0
B52: 1-20 кВ | C52: 1369522.11 | E52: 1357793.15 | G52: 0
A53: 2.3.1.4.2 | B53: Сечение провода - от 50 мм2 до 100 мм2 включительно
B54: 0,4 кВ и ниже | C54: 943826.69 | E54: 1185816.17 | G54: 0
B55: 1-20 кВ | C55: 1942934.75 | E55: 1523438.54 | G55: 0
A56: 2.3.1.4.3 | B56: Сечение провода - от 100 до 200 мм2 включительно
B57: 0,4 кВ и ниже | C57: 1218895.28 | E57: =598.71*1000 -> 598710 | G57: 0
B58: 1-20 кВ | C58: =4846.61*1000 -> 4846610 | E58: =1278.96*1000 -> 1278960 | G58: 0
A59: 2.3.2. | B59: Тип провода - неизолированный
A60: 2.3.2.3. | B60: Материал провода - сталеалюминиевый
A61: 2.3.2.3.1 | B61: Сечение провода - до 50 мм2 включительно
B62: 0,4 кВ и ниже | C62: =715.21*1000 -> 715210 | E62: =531.8*1000 -> 531800 | G62: 0
B63: 1-20 кВ | C63: 1218791.19 | E63: 972734.09 | G63: 0
B64: 35 кВ | C64: =8413*1000 -> 8413000 | E64: =8413*1000 -> 8413000 | G64: 0
A65: 2.3.2.3.2 | B65: Сечение провода - от 50 мм2 до 100 мм2 включительно
B66: 0,4 кВ и ниже | C66: =1713.18*1000 -> 1713180 | E66: 1455638.59 | G66: 0
B67: 1-20 кВ | C67: =79419.13*1000 -> 79419130 | E67: =79419.13*1000 -> 79419130 | G67: 0
B68: 110 кВ и выше | C68: 18396660 | E68: 18396660 | G68: 0
A69: 2.3.2.3.3 | B69: Сечение провода - от 100 до 200 мм2 включительно
B70: 1-20 кВ | C70: =2958.03*1000 -> 2958030 | E70: =2958.03*1000 -> 2958030 | G70: 0
B71: 110 кВ и выше | C71: =43453.04*1000 -> 43453040 | E71: =43453.04*1000 -> 43453040 | G71: 0
A72: 2.3.2.4. | B72: Материал провода - алюминевый
A73: 2.3.2.4.1 | B73: Сечение провода - до 50 мм2 включительно
B74: 0,4 кВ и ниже | C74: =1331.65*1000 -> 1331650 | E74: =576.03*1000 -> 576030 | G74: 0
B75: 1-20 кВ | C75: 1454348.96 | E75: =1213.76*1000 -> 1213760 | G75: 0
A76: 2.3.2.4.3 | B76: Сечение провода - от 100 мм2 до 200м2 включительно
B77: 1-20 кВ | C77: =1067.51*1000 -> 1067510 | E77: =1067.51*1000 -> 1067510 | G77: 0

Sheet Кабельные линии (hidden)
A1: Стандартизированная тарифная ставка на покрытие расходов сетевой организации на строительство кабельных линий электропередачи
B2: Наименование стандартизированной тарифной ставки | C2: Размер ставки за единицу максимальной мощности, в отношении заявителей, осуществляющих технологическое присоединение энергопринимающих устройств руб./кВт (без учета НДС)
C3: свыше 150 кВт, на территориях городских населенных пунктов | D3: Длина линии, км | E3: свыше 150 кВт, на территориях, не относящихся к территориям городских населенных пунктов | F3: Длина линии, км | G3: не более 150 кВт | H3: Длина линии, км
A4: № п/п | B4: 1 | C4: 2 | D4: 3 | E4: 4 | F4: 5 | G4: 6 | H4: 7
A5: 3 | B5: С3 - Стандартизированная тарифная ставка на покрытие расходов сетевой организации на строительство кабельных линий электропередачи
A6: 3.1. | B6: Способ прокладки - в траншеях
A7: 3.1.1. | B7: Одножильные
A8: 3.1.1.1. | B8: Кабели с резиновой и пластмассовой изоляцией
A9: 3.1.1.1.1 | B9: Сечение провода - до 50 мм2 включительно
B10: 0,4 кВ и ниже | C10: 1082300 | E10: - | G10: 0
B11: 1-20 кВ | C11: 1851110 | E11: - | G11: 0
A12: 3.1.1.1.2 | B12: Сечение провода - от 50 мм2 до 100 мм2 включительно
B13: 0,4 кВ и ниже | C13: 1935920 | E13: =1935.92*1000 -> 1935920 | G13: 0
B14: 1-20 кВ | C14: 1716768.15 | E14: 2120495.04 | G14: 0 | M14: 1 | N14: =C10*D10+C11*D11+C13*D13+C14*D14+C16*D16+C17*D17+C19*D19+C20*D20+C23*D23+C24*D24+C26*D26+C27*D27+C29*D29+C30*D30+C32*D32+C33*D33+C37*D37+C38*D38+C40*D40+C41*D41+C43*D43+C44*D44+C46*D46+C47*D47+C50*D50+C51*D51+C53*D53+C54*D54+C56*D56+C57*D57+C59*D59+C60*D60+C65*D65+C69*D69+C72*D72+C74*D74+C79*D79+C81*D81+C83*D83+C85*D85+C88*D88+C90*D90+C94*D94+C95*D95+C97*D97+C98*D98+C100*D100+C101*D101+C103*D103+C104*D104+C107*D107+C109*D109+C111*D111+C112*D112+C114*D114 -> 0
A15: 3.1.1.1.3 | B15: Сечение провода - от 100 до 200 мм2 включительно | M15: 2 | N15: =E13*F13+E14*F14+E16*F16+E17*F17+E19*F19+E20*F20+E23*F23+E24*F24+E26*F26+E27*F27+E29*F29+E30*F30+E32*F32+E33*F33+E37*F37+E38*F38+E40*F40+E41*F41+E43*F43+E44*F44+E46*F46+E47*F47+E50*F50+E51*F51+E53*F53+E54*F54+E56*F56+E57*F57+E59*F59+E60*F60+E65*F65+E69*F69+E74*F74+E79*F79+E81*F81+E83*F83+E85*F85+E88*F88+E94*F94+E97*F97+E100*F100+E101*F101+E103*F103+E109*F109+E111*F111+E112*F112+E114*F114 -> 0
B16: 0,4 кВ и ниже | C16: 1295668.11 | E16: =1870.62*1000 -> 1870620 | G16: 0 | M16: 3 | N16: =G10*H10+G11*H11+H13*G13+H14*G14+H16*G16+H17*G17+H19*G19+H20*G20+H23*G23+H24*G24+H26*G26+H27*G27+H29*G29+H30*G30+H32*G32+H33*G33+G37*H37+H38*G38+H40*G40+H41*G41+H43*G43+H44*G44+H46*G46+H47*G47+H50+G50+H51*G51+H53*G53+H54*G54+H56*G56+H57*G57+H59*G59+H60*G60+H65*G65+H69*G69+H81*G81+H83*G83+H85*G85+H97*G97+H100*G100+H101*G101+H103*G103+H109*G109+H112*G112+H114*G114+G74*H74+G88*H88+G94*H94+G111*H111 -> 0
B17: 1-20 кВ | C17: 4138377.81 | E17: 6125403.47 | G17: 0
A18: 3.1.1.1.4 | B18: Сечение провода - от 200 до 500 мм2 включительно | N18: Ошибка
B19: 0,4 кВ и ниже | C19: 2085718.48 | E19: =2605.5*1000 -> 2605500 | G19: 0 | N19: D | O19: Территория подключения не соотвествует заданным параметрам. Если мощность превышает 150 кВт заполните колонку F. Если мощность менее 150 кВт заполните колонку H
B20: 1-20 кВ | C20: 5213192.93 | E20: =12503.87*1000 -> 12503870 | G20: 0 | N20: F | O20: Территория подключения не соотвествует заданным параметрам. Если мощность превышает 150 кВт заполните колонку D. Если мощность менее 150 кВт заполните колонку H
A21: 3.1.1.2. | B21: Кабели с бумажной изоляцией | N21: H | O21: Вводимое значение не соотвествует заданным параметрам. Если мощность превышает 150 кВт заполните колонку D или F
A22: 3.1.1.2.1 | B22: Сечение провода - до 50 мм2 включительно
B23: 0,4 кВ и ниже | C23: =1016.61*1000 -> 1016610 | E23: =1016.61*1000 -> 1016610 | G23: 0
B24: 1-20 кВ | C24: =1614.26*1000 -> 1614260 | E24: =1000.86*1000 -> 1000860 | G24: 0
A25: 3.1.1.2.2 | B25: Сечение провода - от 50 мм2 до 100 мм2 включительно | N25: Сообщение
B26: 0,4 кВ и ниже | C26: =3199.5*1000 -> 3199500 | E26: =3199.5*1000 -> 3199500 | G26: 0 | N26: D | O26: Вводимое значение в отношении заявителей на территории городских населенных пунктов
B27: 1-20 кВ | C27: =8723.66*1000 -> 8723660 | E27: =3314.67*1000 -> 3314670 | G27: 0 | N27: F | O27: Вводимое значение в отношении заявителей на территориях, не относящихся к территориям городских населенных пунктов
A28: 3.1.1.2.3 | B28: Сечение провода - от 100 до 200 мм2 включительно | N28: H | O28: Вводимое значение в отношении заявителей, осуществляющих технологическое присоединение энергопринимающих устройств не более 150 кВт
B29: 0,4 кВ и ниже | C29: 1227177.74 | E29: =1239.88*1000 -> 1239880 | G29: 0
B30: 1-20 кВ | C30: 1178110.34 | E30: =4313.08*1000 -> 4313080 | G30: 0
A31: 3.1.1.2.4 | B31: Сечение провода - от 200 до 500 мм2 включительно
B32: 0,4 кВ и ниже | C32: =5801.8*1000 -> 5801800 | E32: =5801.8*1000 -> 5801800 | G32: 0 | N32: D | O32: =AND(Калькулятор!$C$9='ставки за 1кВт'!$D$4,Калькулятор!$C$8>150) -> FALSE
B33: 1-20 кВ | C33: =3500.94*1000 -> 3500940 | E33: =3352.96*1000 -> 3352960 | G33: 0 | N33: F | O33: =AND(Калькулятор!$C$9='ставки за 1кВт'!$E$4,Калькулятор!$C$8>150) -> FALSE
A34: 3.1.2. | B34: Многожильные | N34: H | O34: =AND(Калькулятор!$C$9='ставки за 1кВт'!$F$4,Калькулятор!$C$8<150) -> FALSE
A35: 3.1.2.1. | B35: Кабели с резиновой и пластмассовой изоляцией
A36: 3.1.2.1.1 | B36: Сечение провода - до 50 мм2 включительно
B37: 0,4 кВ и ниже | C37: 787771.36 | E37: =157.82*1000 -> 157820 | G37: 0
B38: 1-20 кВ | C38: =566.19*1000 -> 566190 | E38: =566.19*1000 -> 566190 | G38: 0
A39: 3.1.2.1.2 | B39: Сечение провода - от 50 мм2 до 100 мм2 включительно
B40: 0,4 кВ и ниже | C40: 2813205.11 | E40: 1795749.12 | G40: 0
B41: 1-20 кВ | C41: =2779.34*1000 -> 2779340 | E41: =2481.39*1000 -> 2481390 | G41: 0
A42: 3.1.2.1.3 | B42: Сечение провода - от 100 до 200 мм2 включительно
B43: 0,4 кВ и ниже | C43: 2218767.49 | E43: 2820526.36 | G43: 0
B44: 1-20 кВ | C44: 3061748.64 | E44: 2355060 | G44: 0
A45: 3.1.2.1.4 | B45: Сечение провода - от 200 до 500 мм2 включительно
B46: 0,4 кВ и ниже | C46: 4114568.65 | E46: =3795.98*1000 -> 3795980 | G46: 0
B47: 1-20 кВ | C47: 3568797.48 | E47: =2768*1000 -> 2768000 | G47: 0
A48: 3.1.2.2. | B48: Кабели с бумажной изоляцией
A49: 3.1.2.2.1 | B49: Сечение провода - до 50 мм2 включительно
B50: 0,4 кВ и ниже | C50: =839.9*1000 -> 839900 | E50: =1773.01*1000 -> 1773010 | G50: 0
B51: 1-20 кВ | C51: 2363656.07 | E51: 2354608.37 | G51: 0
A52: 3.1.2.2.2 | B52: Сечение провода - от 50 мм2 до 100 мм2 включительно
B53: 0,4 кВ и ниже | C53: =1532.21*1000 -> 1532210 | E53: =1532.21*1000 -> 1532210 | G53: 0
B54: 1-20 кВ | C54: 1886468.01 | E54: 2087756.72 | G54: 0
A55: 3.1.2.2.3 | B55: Сечение провода - от 100 до 200 мм2 включительно
B56: 0,4 кВ и ниже | C56: =1278.9*1000 -> 1278900 | E56: 1160712.75 | G56: 0
B57: 1-20 кВ | C57: 3553273.62 | E57: 2732433.7 | G57: 0
A58: 3.1.2.2.4 | B58: Сечение провода - от 200 до 500 мм2 включительно
B59: 0,4 кВ и ниже | C59: =2951.24*1000 -> 2951240 | E59: =2951.24*1000 -> 2951240 | G59: 0
B60: 1-20 кВ | C60: 5227708.4 | E60: =5897.2*1000 -> 5897200 | G60: 0
A61: 3.5. | B61: Способ прокладки - в галереях и эстакадах
A62: 3.5.1. | B62: Одножильные
A63: 3.5.1.1. | B63: Кабели с резиновой и пластмассовой изоляцией
A64: 3.5.1.1.4 | B64: Сечение провода - от 200м2 до 500 мм2 включительно
B65: 1-20 кВ | C65: =5539.36*1000 -> 5539360 | E65: =5539.36*1000 -> 5539360 | G65: 0
A66: 3.5.2. | B66: Многожильные | G66: 0
A67: 3.5.2.1. | B67: Кабели с резиновой и пластмассовой изоляцией | G67: 0
A68: 3.5.2.1.1 | B68: Сечение провода - до 50 мм2 включительно
B69: 0,4 кВ и ниже | C69: =280.73*1000 -> 280730 | E69: =280.73*1000 -> 280730 | G69: 0
A70: 3.5.2.2. | B70: Кабели с бумажной изоляцией
A71: 3.5.2.2.1. | B71: Сечение провода - до 50 мм2 включительно
B72: 1-20 кВ | C72: 1097068.91 | E72: - | G72: 0
A73: 3.5.2.2.3. | B73: Сечение провода - от 100 до 200 мм2 включительно
B74: 1-20 кВ | C74: =3792.55*1000 -> 3792550 | E74: =3792.55*1000 -> 3792550 | G74: 0
A75: 3.6. | B75: Способ прокладки - горизонтальное наклонное бурение
A76: 3.6.1. | B76: Одножильные
A77: 3.6.1.1. | B77: Кабели с резиновой и пластмассовой изоляцией
A78: 3.6.1.1.1 | B78: Сечение провода - до 50 мм2 включительно
B79: 1-20 кВ | C79: 10397570 | E79: 10397570 | G79: 0
A80: 3.6.1.1.2 | B80: Сечение провода - от 50 мм2 до 100 мм2 включительно
B81: 1-20 кВ | C81: 3464958.77 | E81: =2497.28*1000 -> 2497280 | G81: 0
A82: 3.6.1.1.3 | B82: Сечение провода - от 100 до 200 мм2 включительно
B83: 1-20 кВ | C83: 5214959.71 | E83: =5445.54*1000 -> 5445540 | G83: 0
A84: 3.6.1.1.4 | B84: Сечение провода - от 200 до 500 мм2 включительно
B85: 1-20 кВ | C85: 3577128.55 | E85: =501.35*1000 -> 501350 | G85: 0
A86: 3.6.1.2 | B86: Кабели с бумажной изоляцией
A87: 3.6.1.2.2. | B87: Сечение провода - от 50 мм2 до 100 мм2 включительно
B88: 1-20 кВ | C88: =1479.62*1000 -> 1479620 | E88: =1479.62*1000 -> 1479620 | G88: 0
A89: 3.6.1.2.4. | B89: Сечение провода - от 200 мм2 до 500 мм2 включительно
B90: 1-20 кВ | C90: 9723110 | E90: - | G90: 0
A91: 3.6.2. | B91: Многожильные
A92: 3.6.2.1. | B92: Кабели с резиновой и пластмассовой изоляцией
A93: 3.6.2.1.1 | B93: Сечение провода - до 50 мм2 включительно
B94: 0,4 кВ и ниже | C94: 1688894.01 | E94: =3730.34*1000 -> 3730340 | G94: 0
B95: 1-20 кВ | C95: 9645790 | E95: - | G95: 0
A96: 3.6.2.1.2 | B96: Сечение провода - от 50 мм2 до 100 мм2 включительно
B97: 0,4 кВ и ниже | C97: 1010225.88 | E97: =3325.37*1000 -> 3325370 | G97: 0
B98: 1-20 кВ | C98: 9645790 | E98: - | G98: 0
A99: 3.6.2.1.3 | B99: Сечение провода - от 100 до 200 мм2 включительно
B100: 0,4 кВ и ниже | C100: 4413565.01 | E100: =5113.03*1000 -> 5113030 | G100: 0
B101: 1-20 кВ | C101: =16016.78*1000 -> 16016780 | E101: =15243.04*1000 -> 15243040 | G101: 0
A102: 3.6.2.1.4 | B102: Сечение провода - от 200 до 500 мм2 включительно
B103: 0,4 кВ и ниже | C103: 6832411.54 | E103: =6068.98*1000 -> 6068980 | G103: 0
B104: 1-20 кВ | C104: 7387470 | E104: -
A105: 3.6.2.2. | B105: Кабели с бумажной изоляцией
A106: 3.6.2.2.1 | B106: Сечение провода - до 50 мм2 включительно
B107: 1-20 кВ | C107: 11353980 | E107: - | G107: 0
A108: 3.6.2.2.2 | B108: Сечение провода - от 50 мм2 до 100 мм2 включительно
B109: 1-20 кВ | C109: 2436207.34 | E109: =1878.86*1000 -> 1878860 | G109: 0
A110: 3.6.2.2.3 | B110: Сечение провода - от 100 до 200 мм2 включительно
B111: 0,4 кВ и ниже | C111: =1328.45*1000 -> 1328450 | E111: =1328.45*1000 -> 1328450 | G111: 0
B112: 1-20 кВ | C112: 6058344.52 | E112: =5726.1*1000 -> 5726100 | G112: 0
A113: 3.6.2.2.4 | B113: Сечение провода - от 200 до 500 мм2 включительно
B114: 1-20 кВ | C114: 3255072.86 | E114: =1977.74*1000 -> 1977740 | G114: 0

Sheet Пункты секционирования (hidden)
A1: Стандартизированная тарифная ставка на покрытие расходов сетевой организации на строительство пунктов секционирования (реклоузеров, распределительных пунктов, переключательных пунктов)
B5: Наименование стандартизированной тарифной ставки | C5: Размер ставки в отношении заявителей, осуществляющих технологическое присоединение энергопринимающих устройств свыше 150 кВт (на территориях городских населенных пунктов), руб./шт | D5: шт. | E5: Размер ставки в отношении заявителей, осуществляющих технологическое присоединение энергопринимающих устройств свыше 150 кВт (на территориях, не относящихся к территориям городских населенных пунктов), руб./шт | F5: шт. | G5: Размер ставки в отношении заявителей, осуществляющих технологическое присоединение энергопринимающих устройств не более 150 кВт, руб./шт | H5: шт.
A6: № п/п | B6: 1 | C6: 2 | D6: 3 | E6: 4 | F6: 5 | G6: 6 | H6: 7
A7: 4 | B7: С4 - Стандартизированная тарифная ставка на покрытие расходов сетевой организации на строительство пунктов секционирования (реклоузеров, распределительных пунктов, переключательных пунктов)
A8: 4.1 | B8: Реклоузер
A9: 4.1.3 | B9: Номинальный ток - от 250 А до 500 А включительно
B10: 1 - 20 кВ | C10: =393.3*1000 -> 393300 | E10: 1206095.25 | G10: 0 | M10: =C10*D10 -> 0 | N10: =E10*F10 -> 0 | O10: =G10*H10 -> 0
A11: 4.1.4 | B11: Номинальный ток - от 500 А до 1000 А включительно
B12: 1 - 20 кВ | C12: 1288492.26 | E12: =1335.93*1000 -> 1335930 | G12: 0 | M12: =C12*D12 -> 0 | N12: =E12*F12 -> 0 | O12: =G12*H12 -> 0
B13: 35 кВ | C13: =484.45*1000 -> 484450 | E13: =484.45*1000 -> 484450 | G13: 0 | M13: 0 | N13: 0 | O13: 0
A14: 4.2 | B14: Распределительные пункты (РП)
A15: 4.2.2 | B15: Номинальный ток - от 100 А до 250 А включительно
B16: 1 - 20 кВ | C16: =602.13*1000 -> 602130 | E16: =602.13*1000 -> 602130 | G16: 0 | M16: =C16*D16 -> 0 | N16: 0 | O16: 0
A17: 4.2.4 | B17: Номинальный ток - от 500 А до 1000 А включительно
B18: 1 - 20 кВ | C18: =6787.76*1000 -> 6787760 | E18: =8788.54*1000 -> 8788540 | G18: 0 | M18: =C18*D18 -> 0 | N18: 0 | O18: 0
M19: =SUM(M10:M18) -> 0 | N19: =SUM(N10:N18) -> 0 | O19: 0

Sheet Трансформаторные подстанции (hidden)
A1: Стандартизированная тарифная ставка на покрытие расходов сетевой организации на строительство трансформаторных подстанций подстанций (ТП), за исключением распределительных трансформаторных подстанций (РТП), с уровнем напряжения до 35 кВ
B3: Наименование стандартизированной тарифной ставки | C3: Размер ставки в отношении заявителей, осуществляющих технологическое присоединение энергопринимающих устройств свыше 150 кВт (на территориях городских населенных пунктов), руб./кВт | D3: наличие | E3: Размер ставки в отношении заявителей, осуществляющих технологическое присоединение энергопринимающих устройств свыше 150 кВт (на территориях, не относящихся к территориям городских населенных пунктов), руб./кВт | F3: наличие | G3: Размер ставки в отношении заявителей, осуществляющих технологическое присоединение энергопринимающих устройств не более 150 кВт, руб./кВт | H3: наличие
A4: № п/п | B4: 1 | C4: 2 | D4: 3 | E4: 4 | F4: 5 | G4: 6 | H4: 7
A5: 5 | B5: С5 - Трансформаторные подстанции (ТП), за исключением распределительных трансформаторных подстанций (РТП)
A6: 5.1. | B6: Однотрансформаторные
A7: 5.1.1 | B7: Трансформаторная мощность - до 25 кВА включительно | C7: 11708.71 | E7: 18798.73 | G7: 0 | L7: =IF(D7="да",C7,0) -> 0 | M7: =IF(F7="да",E7,0) -> 0 | N7: =IF(H7="да",G7,0) -> 0
A8: 5.1.2 | B8: Трансформаторная мощность - от 25 кВА до 100 кВА включительно | C8: 7164.58 | E8: 11170.56 | G8: 0 | L8: =IF(D8="да",C8,0) -> 0 | M8: =IF(F8="да",E8,0) -> 0 | N8: =IF(H8="да",G8,0) -> 0
A9: 5.1.3 | B9: Трансформаторная мощность - от 100 кВА до 250 кВА включительно | C9: 4581.62 | E9: 4699.69 | G9: 0 | L9: 0 | M9: 0 | N9: 0
A10: 5.1.4 | B10: Трансформаторная мощность - от 250 кВА до 500 кВА включительно | C10: 4418.23 | E10: 11202.74 | G10: 0 | L10: 0 | M10: 0 | N10: 0
A11: 5.1.5 | B11: Трансформаторная мощность - от 500 кВА до 900 кВА включительно | C11: 6132.35 | E11: 2496.91 | G11: 0 | L11: 0 | M11: 0 | N11: 0
A12: 5.1.6 | B12: Трансформаторная мощность - свыше 1000 кВА | C12: 1276.52 | E12: 2076.06 | G12: 0 | L12: 0 | M12: 0 | N12: 0
A13: 5.2. | B13: Двухтрансформаторные и более
A14: 5.2.3 | B14: Трансформаторная мощность - от 100 кВА до 250 кВА включительно | C14: 12632.67 | E14: 7776.59 | G14: 0 | L14: =IF(D14="да",C14,0) -> 0 | M14: 0 | N14: =IF(H14="да",G14,0) -> 0
A15: 5.2.4 | B15: Трансформаторная мощность - от 250 кВА до 500 кВА включительно | C15: 15515.45 | E15: 7495.66 | G15: 0 | L15: 0 | M15: 0 | N15: =IF(H15="да",G15,0) -> 0
A16: 5.2.5 | B16: Трансформаторная мощность - от 500 кВА до 900 кВА включительно | C16: 13564.92 | E16: 4978.96 | G16: 0 | L16: 0 | M16: 0 | N16: 0
A17: 5.2.6 | B17: Трансформаторная мощность - свыше 1000 кВА | C17: 5772.91 | E17: 3055.94 | G17: 0 | L17: 0 | M17: 0 | N17: 0
L19: =SUM(L7:L17) -> 0 | M19: =SUM(M7:M17) -> 0 | N19: =SUM(N7:N17) -> 0

Sheet РТП (hidden)
A1: Стандартизированная тарифная ставка на покрытие расходов сетевой организации на строительство распределительных трансформаторных подстанций (РТП) с уровнем напряжения до 35 кВ
B3: Наименование стандартизированной тарифной ставки | C3: Размер ставки в отношении заявителей, осуществляющих технологическое присоединение энергопринимающих устройств свыше 150 кВт (на территориях городских населенных пунктов), руб./кВт | D3: наличие | E3: Размер ставки в отношении заявителей, осуществляющих технологическое присоединение энергопринимающих устройств свыше 150 кВт (на территориях, не относящихся к территориям городских населенных пунктов), руб./кВт | F3: наличие | G3: Размер ставки в отношении заявителей, осуществляющих технологическое присоединение энергопринимающих устройств не более 150 кВт, руб./кВт | H3: наличие
A4: № п/п | B4: 1 | C4: 2 | D4: 3 | E4: 4 | F4: 5 | G4: 6 | H4: 7
A5: 6 | B5: С6 - Распределительные трансформаторные подстанции (РТП)
A6: 6.1. | B6: Однотрансформаторные
A7: 6.1.2 | B7: Трансформаторная мощность - от 25 кВА до 100 кВА включительно | C7: 64128.75 | E7: 64128.75 | G7: 0 | K7: =IF(D7="да",C7,0) -> 0 | L7: =IF(F7="да",E7,0) -> 0 | M7: =IF(H7="да",G7,0) -> 0
A8: 6.2. | B8: Двухтрансформаторные и более
A9: 6.2.6 | B9: Трансформаторная мощность - свыше 1000 кВА | C9: 4 285, 86 | E9: 4 285, 86 | G9: 0 | K9: =IF(D9="да",C9,0) -> 0 | L9: =IF(F9="да",E9,0) -> 0 | M9: =IF(H9="да",G9,0) -> 0
K10: =SUM(K7:K9) -> 0 | L10: =SUM(L7:L9) -> 0 | M10: 0

Sheet Источники питания (hidden)
A1: Стандартизированная тарифная ставка на покрытие расходов сетевой организации на строительство подстанций уровнем напряжения 35 кВ и выше (ПС)
B5: Наименование стандартизированной тарифной ставки | C5: Размер ставки в отношении заявителей, осуществляющих технологическое присоединение энергопринимающих устройств свыше 150 кВт (на территориях городских населенных пунктов), руб./кВт | D5: наличие | E5: Размер ставки в отношении заявителей, осуществляющих технологическое присоединение энергопринимающих устройств свыше 150 кВт (на территориях, не относящихся к территориям городских населенных пунктов), руб./кВт | F5: наличие | G5: Размер ставки в отношении заявителей, осуществляющих технологическое присоединение энергопринимающих устройств не более 150 кВт, руб./кВт | H5: наличие
A6: № п/п | B6: 1 | C6: 2 | D6: 3 | E6: 4 | F6: 5 | G6: 6 | H6: 7
A7: 7 | B7: С7 - Подстанции уровнем напряжения 35 кВ и выше (ПС)
A8: 7.2. | B8: Двухтрансформаторные подстанции 110/6 (10) кВ | C8: 14703.84 | E8: 11991.69 | G8: 0 | K8: =IF(D8="да",C8,0) -> 0 | L8: =IF(F8="да",E8,0) -> 0 | M8: =IF(H8="да",G8,0) -> 0

Sheet С1_1кВт (hidden)
A1: Ставка за единицу максимальной мощности для определения платы за технологическое присоединение к электрическим сетям на уровне напряжения ниже 35 кВ и мощности менее 8 900 кВт на осуществление мероприятий, предусмотренных пунктом 16 (за исключением подпункта «б») Методических указаний (на территориях городских населенных пунктов и на территориях, не относящихся к территориям городских населенных пунктов)
A3: № п.п. | B3: Наименование стандартизированной тарифной ставки | D3: Единица измерения | E3: Значение (без учета НДС)
A4: 1 | B4: 2 | C4: 3 | D4: 4 | E4: 5
A5: 1 | B5: С1maxN | C5: Ставка за единицу максимальной мощности для определения платы за технологическое присоединение к электрическим сетям на уровне напряжения ниже 35 кВ и мощности менее 8 900 кВт на осуществление мероприятий, предусмотренных пунктом 16 (за исключением подпункта «б») Методических указаний, | D5: руб./кВт | E5: 251.36
B6: в том числе:
A7: 1.1. | C7: Подготовка и выдача сетевой организацией технических условий Заявителю | D7: руб./кВт | E7: 119.34
A8: 1.2. | C8: Проверка сетевой организацией выполнения Заявителем технических условий (включая процедуры, предусмотренные подпунктами «г» - «е» пункта 7 Правил технологического присоединения) | D8: руб./кВт | E8: 132.02

Sheet С8_ПУ (hidden)
A1: Стандартизированная тарифная ставка на покрытие расходов сетевой организации на строительство воздушных линий электропередачи
B3: Наименование стандартизированной тарифной ставки | C3: Размер ставки в отношении заявителей, осуществляющих технологическое присоединение энергопринимающих устройств свыше 150 кВт (на территориях городских населенных пунктов), рублей за точку учета | D3: Количество точек учета, шт | E3: Размер ставки в отношении заявителей, осуществляющих технологическое присоединение энергопринимающих устройств свыше 150 кВт (на территориях, не относящихся к территориям городских населенных пунктов), рублей за точку учета | F3: Количество точек учета, шт | G3: Размер ставки в отношении заявителей, осуществляющих технологическое присоединение энергопринимающих устройств не более 150 кВт, рублей за точку учета | H3: Количество точек учета, шт
A4: № п/п | B4: 1 | C4: 2 | D4: 3 | E4: 4 | F4: 5 | G4: 6 | H4: 7
A5: 8 | B5: С8 - Стандартизированная тарифная ставка на покрытие расходов сетевой организации на обеспечение средствами коммерческого учета электрической энергии (мощности)
A6: 8.1. | B6: однофазные | L6: =IF(Калькулятор!C9='ставки за 1кВт'!D4,D8,0) -> 0
A7: 8.1.1. | B7: прямого включения
B8: 0,4 кВ и ниже без ТТ | C8: 17521.13 | E8: 17521.13 | G8: 17521.13 | K8: 1 | L8: =C8*D8+C11*D11+C13*D13+C15*D15 -> 0
A9: 8.2. | B9: трехфазные
A10: 8.2.1. | B10: прямого включения | K10: 2 | L10: =E8*F8+E11*F11+E13*F13+E15*F15 -> 0
B11: 0,4 кВ и ниже без ТТ | C11: 30036.22 | E11: 30036.22 | G11: 30036.22
A12: 8.2.2. | B12: полукосвенного включения | K12: 3 | L12: =G8*H8+G11*H11+G13*H13+G15*H15 -> 0
B13: 0,4 кВ и ниже с ТТ | C13: 33790.74 | E13: 33790.74 | G13: 33790.74
A14: 8.2.3. | B14: косвенного включения
B15: 1 - 20 кВ | C15: 312973.05 | E15: 312973.05 | G15: 312973.05
M16: =L8 -> 0 | N16: =L10 -> 0 | O16: =L12 -> 0

Sheet реестр (hidden)
B1: Полное (сокращенное) наименование организации
A2: 1 | B2: Филиал открытого акционерного общества «Межрегиональная распределительная сетевая компания Урала» - «Челябэнерго» (Филиал ОАО «МРСК Урала» - «Челябэнерго»)
A3: 2 | B3: Акционерное общество «Автомобильный завод «Урал» (АО «Автомобильный завод «Урал», АО «АЗ «Урал»)
A4: 3 | B4: Акционерное общество «Оборонэнерго» Филиал «Уральский» (АО «Оборонэнерго» Филиал «Уральский»)
A5: 4 | B5: Акционерное общество «Горэлектросеть» (АО «Горэлектросеть»)
A6: 5 | B6: Акционерное общество «Трансэнерго» (АО «Трансэнерго»)
A7: 6 | B7: Акционерное общество «Электросеть» (АО «Электросеть»)
A8: 7 | B8: Акционерное общество «Энергосетевая Компания ЧТПЗ» (АО «ЭСК ЧТПЗ»)
A9: 8 | B9: Муниципальное многоотраслевое предприятие коммунального хозяйства (ММПКХ)
A10: 9 | B10: Муниципальное унитарное предприятие «КОММЕТ» (МУП «КОММЕТ»)
A11: 10 | B11: Муниципальное унитарное предприятие «Городская управляющая компания» (МУП «ГУК»)
A12: 11 | B12: Муниципальное унитарное предприятие «Многоотраслевое производственное объединение энергосетей» города Трехгорного (МУП «МПОЭ» г. Трехгорного)
A13: 12 | B13: Муниципальное унитарное предприятие «Электротепловые сети» (МУП «ЭТС»)
A14: 13 | B14: Непубличное акционерное общество «Вишневогорский горно-обогатительный комбинат» (АО «Вишневогорский ГОК»)
A15: 14 | B15: Открытое акционерное общество «Магнитогорский метизно-калибровочный завод «ММК-Метиз» (ОАО «ММК-Метиз»)
A16: 15 | B16: Открытое акционерное общество «Российские железные дороги» (Южно-Уральская дирекция по энергообеспечению – структурное подразделение Трансэнерго – филиала открытого акционерного общества «Российские железные дороги») (ОАО «РЖД» (Южно-Уральская дирекция по энергообеспечению – структурное подразделение Трансэнерго – филиала ОАО «РЖД»)
A17: 16 | B17: Общество с ограниченной ответственностью «АТЭК74» (ООО «АТЭК74»)
A18: 17 | B18: Общество с ограниченной ответственностью «Златэнерготелеком» (ООО «Златэнерготелеком»)
A19: 18 | B19: Общество с ограниченной ответственностью «Интернешенел Билдинг Констракшен» (ООО «ИБК»)
A20: 19 | B20: Общество с ограниченной ответственностью «Каслинская ЭнергоСбытовая Компания» (ООО «Каслинская ЭнергоСбытовая Компания»)
A21: 20 | B21: Общество с ограниченной ответственностью Завод стройиндустрии «КЕММА» (ООО «КЕММА»)
A22: 21 | B22: Общество с ограниченной ответственностью «Магнитогорская Сетевая Компания» (ООО «МСК»)
A23: 22 | B23: Общество с ограниченной ответственностью «Металлстрой» (ООО «Металлстрой»)
A24: 23 | B24: Общество с ограниченной ответственностью «Механический завод» (ООО «Механический завод»)
A25: 24 | B25: Общество с ограниченной ответственностью «Объединенная электросетевая компания - Челябинск» (ООО «ОЭсК - Челябинск»)
A26: 25 | B26: Общество с ограниченной ответственностью «ПРОДВИЖЕНИЕ» (ООО «ПРОДВИЖЕНИЕ»)
A27: 26 | B27: Общество с ограниченной ответственностью «Региональная сетевая компания» (ООО «РСК»)
A28: 27 | B28: Общество с ограниченной ответственностью Сетевая компания «ЭнергоРесурс» (ООО СК «ЭнР»)
A29: 28 | B29: Общество с ограниченной ответственностью «ТЕХНОСЕРВИС-ПЭ» (ООО «ТЕХНОСЕРВИС-ПЭ»)
A30: 29 | B30: Общество с ограниченной ответственностью «Трансэнерго» (ООО «Трансэнерго»)
A31: 30 | B31: Общество с ограниченной ответственностью «Уральская энергетическая сетевая компания» (ООО «УЭСК»)
A32: 31 | B32: Общество с ограниченной ответственностью «ЭДС» (ООО «ЭДС»)
A33: 32 | B33: Общество с ограниченной ответственностью «ЭК Маяк» (ООО «ЭКМ»)
A34: 33 | B34: Общество с ограниченной ответственностью «Электросетевая компания» (ООО «ЭСК»), г. Екатеринбург
A35: 34 | B35: Общество с ограниченной ответственностью «Электросетевая компания» (ООО «Электросетевая компания»), г. Сатка
A36: 35 | B36: Общество с ограниченной ответственностью «ЭНЕРГЕТИЧЕСКАЯ КОМПАНИЯ АЛЬТАИР» (ООО «ЭНЕРГЕТИЧЕСКАЯ КОМПАНИЯ АЛЬТАИР»)
A37: 36 | B37: Общество с ограниченной ответственностью «Энергоснабжающая сетевая компания» (ООО «ЭСК»)
A38: 37 | B38: Общество с ограниченной ответственностью «Энерготехсервис» (ООО «ЭТС»)
A39: 38 | B39: Общество с ограниченной ответственностью «Эффект ТК» (ООО «Эффект ТК»)
A40: 39 | B40: Публичное акционерное общество «Магнитогорский металлургический комбинат» (ПАО «ММК»)
A41: 40 | B41: Публичное акционерное общество «Челябинский завод профилированного стального настила» (ПАО «ЧЗПСН-ПРОФНАСТИЛ»)
A42: 41 | B42: Федеральное государственное унитарное предприятие «Приборостроительный завод» (ФГУП «ПСЗ», ФГУП «Приборостроительный завод»)
A43: 42 | B43: Федеральное государственное унитарное предприятие «Производственное объединение «Маяк» (ФГУП «ПО «Маяк»)
A44: 43 | B44: Общество с ограниченной ответственностью «ТЕРРА» (ООО «ТЕРРА»)
A45: 44 | B45: Общество с ограниченной ответственностью «ДОНКАРБ ГРАФИТ» (ООО «ДОНКАРБ ГРАФИТ»)
A46: 45 | B46: Общество с ограниченной ответственностью «МиассЭнергоСтрой» (ООО «МиассЭнергоСтрой»)
A47: 46 | B47: Общество с ограниченной ответственностью Производственная компания «Уралэлектромонтаж» (ООО ПК «УЭМ»)
A48: 47 | B48: Общество с ограниченной ответственностью «ЭРГО» (ООО «ЭРГО»)

Sheet Калькулятор
B2: Расчет платы за технологическое присоединение к электрическим сетям
B5: Наименование территориальной сетевой организации:
B7: Уровень напряжения энергопринимающих устройств, кВ
B8: Максимальная мощность, кВт
B9: Территория, на которой осуществляется технологическое присоединение к электрическим сетям
B10: Наличие мероприятий по строительству «последней мили» со стороны сетевой организации
B11: Техническое решение для расчета платы с учетом стандартизированных тарифных ставок:
B12: Строительство воздушных линий
B13: Строительство кабельных линий
B14: Строительство трансформаторных подстанций
B15: Строительство пунктов секционирования
B16: Строительство подстанций уровнем напряжения 35кВ и выше (ПС)
B17: Строительство распределительных трансформаторных подстанций
B18: Обеспечение средствами коммерческого учета электрической энергии (мощности)
B19: Техническое решение для расчета платы с учетом ставок за единицу максимальной мощности:
B20: Воздушные линии электропередачи
B21: Кабельные линии электропередачи
B22: Трансформаторные подстанции
B23: Распределительные трансформаторные подстанции
B24: Подстанции уровнем напряжения 35кВ и выше (ПС)
B25: Пункты секционирования
B26: Средства коммерческого учета электрической энергии (мощности)
B31: Внимание! Данные расчеты носят справочный характер и не могут являться окончательными для оплаты стоимости технологического присоединения. Калькулятор расчета платы за технологическое присоединение к электрическим сетям предназначен для примерного расчета стоимости размера платы за технологическое присоединение к электрическим сетям территориальных сетевых организаций Челябинской области.

Sheet ставки за 1кВт (hidden)
A3: № п.п | C3: Наименование тарифной ставки | D3: Размер ставки за единицу максимальной мощности, в отношении заявителей, осуществляющих технологическое присоединение энергопринимающих устройств руб./кВт (без учета НДС)
D4: свыше 150 кВт, на территориях городских населенных пунктов | E4: свыше 150 кВт, на территориях, не относящихся к территориям городских населенных пунктов | F4: не более 150 кВт включительно
D6: 0,4 кВ и ниже
D7: 1 - 20 кВ
D8: 35 кВ
D9: 110 кВ

Sheet ВЛ_1 кВт (hidden)
A1: Ставки за единицу максимальной мощности на покрытие расходов сетевой организации на строительство воздушных линий электропередачи
B3: Наименование стандартизированной тарифной ставки | C3: Размер ставки в отношении заявителей, осуществляющих технологическое присоединение энергопринимающих устройств свыше 150 кВт (на территориях городских населенных пунктов), руб./кВт | D3: наличие | E3: Размер ставки в отношении заявителей, осуществляющих технологическое присоединение энергопринимающих устройств свыше 150 кВт (на территориях, не относящихся к территориям городских населенных пунктов), руб./кВт | F3: наличие | G3: Размер ставки в отношении заявителей, осуществляющих технологическое присоединение энергопринимающих устройств не более 150 кВт, руб./кВт | H3: наличие
A4: № п/п | B4: 1 | C4: 2 | D4: 3 | E4: 4 | F4: 5 | G4: 6 | H4: 7
A5: 2 | B5: С2 - Ставка за единицу максимальной мощности на покрытие расходов сетевой организации на строительство воздушных линий электропередачи
A6: 2.1. | B6: Материал опоры - деревянные | L6: =IF(Калькулятор!C9='ставки за 1кВт'!D4,D10,0) -> 0
A7: 2.1.1. | B7: Тип провода - изолированный
A8: 2.1.1.4. | B8: Материал провода - алюминиевый | M8: =IF(D7="да",C7,0) -> 0
A9: 2.1.1.4.1 | B9: Сечение провода - до 50 мм2 включительно
B10: 0,4 кВ и ниже | C10: 8067.55 | E10: 10000.71 | G10: 0 | K10: 1 | L10: =SUM(IF(D11="да",C11*Калькулятор!C8,0),IF(D10="да",C10*Калькулятор!C8,0),IF(D13="да",C13*Калькулятор!C8,0),IF(D14="да",C14*Калькулятор!C8,0),IF(D16="да",C16*Калькулятор!C8,0),IF(D20="да",C20*Калькулятор!C8,0),IF(D21="да",C21*Калькулятор!C8,0),IF(D24="да",C24*Калькулятор!C8,0),IF(D51="да",C51*Калькулятор!C8,0),IF(D52="да",C52*Калькулятор!C8,0),IF(D54="да",C54*Калькулятор!C8,0),IF(D55="да",C55*Калькулятор!C8,0),IF(D57="да",C57*Калькулятор!C8,0),IF(D58="да",C58*Калькулятор!C8,0),IF(D63="да",C63*Калькулятор!C8,0),IF(D71="да",C71*Калькулятор!C8,0)) -> 0
B11: 1-20 кВ | C11: 3994.63 | E11: 32887.73 | G11: 0 | K11: 2 | L11: =SUM(IF(F10="да",E10*Калькулятор!C8,0),IF(F11="да",E11*Калькулятор!C8,0),IF(F13="да",E13*Калькулятор!C8,0),IF(F14="да",E14*Калькулятор!C8,0),IF(F20="да",E20*Калькулятор!C8,0),IF(F21="да",E21*Калькулятор!C8,0),IF(F24="да",E24*Калькулятор!C8,0),IF(F37="да",E37*Калькулятор!C8,0),IF(F51="да",E51*Калькулятор!C8,0),IF(F52="да",E52*Калькулятор!C8,0),IF(F54="да",E54*Калькулятор!C8,0),IF(F55="да",E55*Калькулятор!C8,0),IF(F62="да",E62*Калькулятор!C8,0),IF(F63="да",E63*Калькулятор!C8,0),IF(F65="да",E65*Калькулятор!C8,0),IF(F71="да",E71*Калькулятор!C8,0)) -> 0
A12: 2.1.1.4.2 | B12: Сечение провода - от 50 мм2 до 100 мм2 включительно | K12: 3 | L12: =SUM(IF(H10="да",G10*Калькулятор!C8,0),IF(H11="да",G11*Калькулятор!C8,0),IF(H13="да",G13*Калькулятор!C8,0),IF(H14="да",G14*Калькулятор!C8,0),IF(H16="да",G16*Калькулятор!C8,0),IF(H20="да",G20*Калькулятор!C8,0),IF(H21="да",G21*Калькулятор!C8,0),IF(H24="да",G24*Калькулятор!C8,0),IF(H26="да",G26*Калькулятор!C8,0),IF(H31="да",G31*Калькулятор!C8,0),IF(H33="да",G33*Калькулятор!C8,0),IF(H37="да",G37*Калькулятор!C8,0),IF(H39="да",G39*Калькулятор!C8,0),IF(H40="да",G40*Калькулятор!C8,0),IF(H45="да",G45*Калькулятор!C8,0),IF(H46="да",G46*Калькулятор!C8,0),IF(H48="да",G48*Калькулятор!C8,0),IF(H51="да",G51*Калькулятор!C8,0),IF(H52="да",G52*Калькулятор!C8,0),IF(H54="да",G54*Калькулятор!C8,0),IF(H55="да",G55*Калькулятор!C8,0),IF(H57="да",G57*Калькулятор!C8,0),IF(H58="да",G58*Калькулятор!C8,0),IF(H62="да",G62*Калькулятор!C8,0),IF(H63="да",G63*Калькулятор!C8,0),IF(H65="да",G65*Калькулятор!C8,0),IF(H67="да",G67*Калькулятор!C8,0),IF(H70="да",G70*Калькулятор!C8,0),IF(H71="да",G71*Калькулятор!C8,0),IF(H73="да",G73*Калькулятор!C8,0)) -> 0
B13: 0,4 кВ и ниже | C13: 7899.37 | E13: 12435.43 | G13: 0
B14: 1-20 кВ | C14: 15829.84 | E14: 4868.24 | G14: 0
A15: 2.1.1.4.3 | B15: Сечение провода - от 100 мм2 до 200 мм2 включительно
B16: 0,4 кВ и ниже | C16: 3878.33 | E16: - | G16: 0
A17: 2.1.2. | B17: Тип провода - неизолированный
A18: 2.1.2.3. | B18: Материал провода - сталеалюминиевый
A19: 2.1.2.3.1 | B19: Сечение провода - до 50 мм2 включительно
B20: 0,4 кВ и ниже | C20: 38759.6 | E20: 13312.29 | G20: 0
B21: 1-20 кВ | C21: 86.03 | E21: 9395.03 | G21: 0
A22: 2.1.2.4. | B22: Материал провода - алюминиевый
A23: 2.1.2.4.1 | B23: Сечение провода - до 50 мм2 включительно
B24: 0,4 кВ и ниже | C24: 674.83 | E24: 4443.47 | G24: 0
A25: 2.1.2.4.2 | B25: Сечение провода - от 50мм2 до 100 мм2 включительно
B26: 1-20 кВ | C26: - | E26: - | G26: 0
A27: 2.2. | B27: Материал опоры - металлические
A28: 2.2.1. | B28: Тип провода – изолированный
A29: 2.2.1.4 | B29: Материал провода – алюминиевый
A30: 2.2.1.4.1 | B30: Сечение провода – до 50 мм2 включительно
B31: 0,4 кВ и ниже | C31: - | E31: - | G31: 0
A32: 2.2.1.4.2 | B32: Сечение провода - от 50мм2 до 100 мм2 включительно
B33: 0,4 кВ и ниже | C33: - | E33: - | G33: 0
A34: 2.2.2. | B34: Тип провода - неизолированный
A35: 2.2.2.3. | B35: Материал провода - сталеалюминиевый
A36: 2.2.2.3.2 | B36: Сечение провода - от 50 до 100 мм2 включительно
B37: 1-20 кВ | C37: - | E37: 14754.96 | G37: 0
A38: 2.2.2.3.3 | B38: Сечение провода - от 100 до 200 мм2 включительно
B39: 1-20 кВ | C39: - | E39: - | G39: 0
B40: 110 кВ | C40: - | E40: - | G40: 0
A41: 2.3. | B41: Материал опоры - железобетонные
A42: 2.3.1 | B42: Тип провода - изолированный
A43: 2.3.1.3 | B43: Материал провода - сталеалюминиевый
A44: 2.3.1.3.1 | B44: Сечение провода – до 50 мм2 включительно
B45: 0,4 кВ и ниже | C45: - | E45: - | G45: 0
B46: 1-20 кВ | C46: - | E46: - | G46: 0
A47: 2.3.1.3.2 | B47: Сечение провода – от 50 мм2 до 100 мм2 включительно
B48: 1-20 кВ | C48: - | E48: - | G48: 0
A49: 2.3.1.4 | B49: Материал провода - алюминиевый
A50: 2.3.1.4.1 | B50: Сечение провода - до 50 мм2 включительно
B51: 0,4 кВ и ниже | C51: 5667.43 | E51: 6983.18 | G51: 0
B52: 1-20 кВ | C52: 2906.1 | E52: 9167.15 | G52: 0
A53: 2.3.1.4.2 | B53: Сечение провода - от 50 мм2 до 100 мм2 включительно
B54: 0,4 кВ и ниже | C54: 3968.3 | E54: 10310.05 | G54: 0
B55: 1-20 кВ | C55: 3747.98 | E55: 10114.85 | G55: 0
A56: 2.3.1.4.3 | B56: Сечение провода - от 100 до 200 мм2 включительно
B57: 0,4 кВ и ниже | C57: 3942.6 | E57: - | G57: 0
B58: 1-20 кВ | C58: 962.05 | E58: - | G58: 0
A59: 2.3.2. | B59: Тип провода - неизолированный
A60: 2.3.2.3. | B60: Материал провода - сталеалюминиевый
A61: 2.3.2.3.1 | B61: Сечение провода - до 50 мм2 включительно
B62: 0,4 кВ и ниже | C62: - | E62: 2.15 | G62: 0
B63: 1-20 кВ | C63: 23539.97 | E63: 3.93 | G63: 0
A64: 2.3.2.3.2 | B64: Сечение провода - от 50 мм2 до 100 мм2 включительно
B65: 1-20 кВ | C65: - | E65: 1824.4 | G65: 0
A66: 2.3.2.3.3 | B66: Сечение провода - от 100 до 200 мм2 включительно
B67: 1-20 кВ | C67: - | E67: - | G67: 0
A68: 2.3.2.4. | B68: Материал провода - алюминевый
A69: 2.3.2.4.1 | B69: Сечение провода - до 50 мм2 включительно
B70: 0,4 кВ и ниже | C70: - | E70: - | G70: 0
B71: 1-20 кВ | C71: 7537.6 | E71: 28240.15 | G71: 0
A72: 2.3.2.4.3 | B72: Сечение провода - от 100 мм2 до 200м2 включительно
B73: 1-20 кВ | C73: - | E73: - | G73: 0

Sheet КЛ_1 кВт (hidden)
A1: Ставки за единицу максимальной мощности на покрытие расходов сетевой организации на строительство кабельных линий электропередачи
B2: Наименование стандартизированной тарифной ставки | C2: Размер ставки за единицу максимальной мощности, в отношении заявителей, осуществляющих технологическое присоединение энергопринимающих устройств руб./кВт (без учета НДС)
C3: свыше 150 кВт, на территориях городских населенных пунктов | D3: наличие | E3: свыше 150 кВт, на территориях, не относящихся к территориям городских населенных пунктов | F3: наличие | G3: не более 150 кВт | H3: наличие
A4: № п/п | B4: 1 | C4: 2 | D4: 3 | E4: 4 | F4: 5 | G4: 6 | H4: 7
A5: 3 | B5: С3 - Ставка за единицу максимальной мощности на покрытие расходов сетевой организации на строительство кабельных линий электропередачи
A6: 3.1. | B6: Способ прокладки - в траншеях
A7: 3.1.1. | B7: Одножильные
A8: 3.1.1.1. | B8: Кабели с резиновой и пластмассовой изоляцией
A9: 3.1.1.1.1 | B9: Сечение провода - до 50 мм2 включительно
B10: 0,4 кВ и ниже | C10: 3614.7 | E10: - | G10: 0
B11: 1-20 кВ | C11: 1932.23 | E11: - | G11: 0
A12: 3.1.1.1.2 | B12: Сечение провода - от 50 мм2 до 100 мм2 включительно
B13: 0,4 кВ и ниже | C13: 1356.67 | E13: - | G13: 0
B14: 1-20 кВ | C14: 1119.73 | E14: 5654.65 | G14: 0 | M14: 1 | N14: =SUM(IF(D10="да",C10*Калькулятор!C8,0),IF(D11="да",C11*Калькулятор!C8,0),IF(D13="да",C13*Калькулятор!C8,0),IF(D14="да",C14*Калькулятор!C8,0),IF(D16="да",C16*Калькулятор!C8,0),IF(D17="да",C17*Калькулятор!C8,0),IF(D19="да",C19*Калькулятор!C8,0),IF(D20="да",C20*Калькулятор!C8,0),IF(D29="да",C29*Калькулятор!C8,0),IF(D30="да",C30*Калькулятор!C8,0),IF(D37="да",C37*Калькулятор!C8,0),IF(D38="да",C38*Калькулятор!C8,0),IF(D40="да",C40*Калькулятор!C8,0),IF(D41="да",C41*Калькулятор!C8,0),IF(D43="да",C43*Калькулятор!C8,0),IF(D44="да",C44*Калькулятор!C8,0),IF(D46="да",C46*Калькулятор!C8,0),IF(D47="да",C47*Калькулятор!C8,0),IF(D50="да",C50*Калькулятор!C8,0),IF(D51="да",C51*Калькулятор!C8,0),IF(D54="да",C54*Калькулятор!C8,0),IF(D56="да",C56*Калькулятор!C8,0),IF(D57="да",C57*Калькулятор!C8,0),IF(D60="да",C60*Калькулятор!C8,0),IF(D72="да",C72*Калькулятор!C8,0),IF(D81="да",C81*Калькулятор!C8,0),IF(D83="да",C83*Калькулятор!C8,0),IF(D85="да",C85*Калькулятор!C8,0),IF(D88="да",C88*Калькулятор!C8,0),IF(D90="да",C90*Калькулятор!C8,0),IF(D94="да",C94*Калькулятор!C8,0),IF(D95="да",C95*Калькулятор!C8,0),IF(D97="да",C97*Калькулятор!C8,0),IF(D98="да",C98*Калькулятор!C8,0),IF(D100="да",C100*Калькулятор!C8,0),IF(D101="да",C101*Калькулятор!C8,0),IF(D103="да",C103*Калькулятор!C8,0),IF(D104="да",C104*Калькулятор!C8,0),IF(D107="да",C107*Калькулятор!C8,0),IF(D109="да",C109*Калькулятор!C8,0),IF(D111="да",C111*Калькулятор!C8,0),IF(D112="да",C112*Калькулятор!C8,0),IF(D114="да",C114*Калькулятор!C8,0)) -> 0
A15: 3.1.1.1.3 | B15: Сечение провода - от 100 до 200 мм2 включительно | M15: 2 | N15: =SUM(IF(F14="да",E14*Калькулятор!C8,0),IF(F16="да",E16*Калькулятор!C8,0),IF(F17="да",E17*Калькулятор!C8,0),IF(F27="да",E27*Калькулятор!C8,0),IF(F29="да",E29*Калькулятор!C8,0),IF(F37="да",E37*Калькулятор!C8,0),IF(F40="да",E40*Калькулятор!C8,0),IF(F43="да",E43*Калькулятор!C8,0),IF(F50="да",E50*Калькулятор!C8,0),IF(F51="да",E51*Калькулятор!C8,0),IF(F54="да",E54*Калькулятор!C8,0),IF(F56="да",E56*Калькулятор!C8,0),IF(F57="да",E57*Калькулятор!C8,0)) -> 0
B16: 0,4 кВ и ниже | C16: 1386.1 | E16: 694.8 | G16: 0 | M16: 3 | N16: =SUM(IF(H10="да",G10*Калькулятор!C8,0),IF(H11="да",G11*Калькулятор!C8,0),IF(H13="да",G13*Калькулятор!C8,0),IF(H14="да",G14*Калькулятор!C8,0),IF(H16="да",G16*Калькулятор!C8,0),IF(H17="да",G17*Калькулятор!C8,0),IF(H19="да",G19*Калькулятор!C8,0),IF(H20="да",G20*Калькулятор!C8,0),IF(H23="да",G23*Калькулятор!C8,0),IF(H24="да",G24*Калькулятор!C8,0),IF(H26="да",G26*Калькулятор!C8,0),IF(H27="да",G27*Калькулятор!C8,0),IF(H29="да",G29*Калькулятор!C8,0),IF(H30="да",G30*Калькулятор!C8,0),IF(H32="да",G32*Калькулятор!C8,0),IF(H33="да",G33*Калькулятор!C8,0),IF(H37="да",G37*Калькулятор!C8,0),IF(H38="да",G38*Калькулятор!C8,0),IF(H40="да",G40*Калькулятор!C8,0),IF(H41="да",G41*Калькулятор!C8,0),IF(H43="да",G43*Калькулятор!C8,0),IF(H44="да",G44*Калькулятор!C8,0),IF(H46="да",G46*Калькулятор!C8,0),IF(H47="да",G47*Калькулятор!C8,0),IF(H50="да",G50*Калькулятор!C8,0),IF(H51="да",G51*Калькулятор!C8,0),IF(H53="да",G53*Калькулятор!C8,0),IF(H54="да",G54*Калькулятор!C8,0),IF(H56="да",G56*Калькулятор!C8,0),IF(H57="да",G57*Калькулятор!C8,0),IF(H59="да",G59*Калькулятор!C8,0),IF(H60="да",G60*Калькулятор!C8,0),IF(H65="да",G65*Калькулятор!C8,0),IF(H69="да",G69*Калькулятор!C8,0),IF(H72="да",G72*Калькулятор!C8,0),IF(H74="да",G74*Калькулятор!C8,0),IF(H79="да",G79*Калькулятор!C8,0),IF(H81="да",G81*Калькулятор!C8,0),IF(H83="да",G83*Калькулятор!C8,0),IF(H85="да",G85*Калькулятор!C8,0),IF(H87="да",G87*Калькулятор!C8,0),IF(H90="да",G90*Калькулятор!C8,0),IF(H94="да",G94*Калькулятор!C8,0),IF(H95="да",G95*Калькулятор!C8,0),IF(H97="да",G97*Калькулятор!C8,0),IF(H98="да",G98*Калькулятор!C8,0),IF(H100="да",G100*Калькулятор!C8,0),IF(H101="да",G101*Калькулятор!C8,0),IF(H101="да",G101*Калькулятор!C8,0),IF(H103="да",G103*Калькулятор!C8,0),IF(H104="да",G104*Калькулятор!C8,0),IF(H107="да",G107*Калькулятор!C8,0),IF(H109="да",G109*Калькулятор!C8,0),IF(H111="да",G111*Калькулятор!C8,0),IF(H112="да",G112*Калькулятор!C8,0),IF(H114="да",G114*Калькулятор!C8,0)) -> 0
B17: 1-20 кВ | C17: 3897.09 | E17: 1203.56 | G17: 0
A18: 3.1.1.1.4 | B18: Сечение провода - от 200 до 500 мм2 включительно | N18: Ошибка
B19: 0,4 кВ и ниже | C19: 1640.74 | E19: - | G19: 0 | N19: D | O19: Территория подключения не соотвествует заданным параметрам. Если мощность превышает 150 кВт заполните колонку F. Если мощность менее 150 кВт заполните колонку H
B20: 1-20 кВ | C20: 11453.72 | E20: - | G20: 0 | N20: F | O20: Территория подключения не соотвествует заданным параметрам. Если мощность превышает 150 кВт заполните колонку D. Если мощность менее 150 кВт заполните колонку H
A21: 3.1.1.2. | B21: Кабели с бумажной изоляцией | N21: H | O21: Вводимое значение не соотвествует заданным параметрам. Если мощность превышает 150 кВт заполните колонку D или F
A22: 3.1.1.2.1 | B22: Сечение провода - до 50 мм2 включительно
B23: 0,4 кВ и ниже | C23: - | E23: - | G23: 0
B24: 1-20 кВ | C24: - | E24: - | G24: 0
A25: 3.1.1.2.2 | B25: Сечение провода - от 50 мм2 до 100 мм2 включительно | N25: Сообщение
B26: 0,4 кВ и ниже | C26: - | E26: - | G26: 0 | N26: D | O26: Вводимое значение в отношении заявителей на территории городских населенных пунктов
B27: 1-20 кВ | C27: - | E27: 250589.05 | G27: 0 | N27: F | O27: Вводимое значение в отношении заявителей на территориях, не относящихся к территориям городских населенных пунктов
A28: 3.1.1.2.3 | B28: Сечение провода - от 100 до 200 мм2 включительно | N28: H | O28: Вводимое значение в отношении заявителей, осуществляющих технологическое присоединение энергопринимающих устройств не более 150 кВт
B29: 0,4 кВ и ниже | C29: 10635.54 | E29: 42268.64 | G29: 0
B30: 1-20 кВ | C30: 3253.16 | E30: - | G30: 0
A31: 3.1.1.2.4 | B31: Сечение провода - от 200 до 500 мм2 включительно
B32: 0,4 кВ и ниже | C32: - | E32: - | G32: 0 | N32: D | O32: =AND(Калькулятор!$C$9='ставки за 1кВт'!$D$4,Калькулятор!$C$8>150) -> FALSE
B33: 1-20 кВ | C33: - | E33: - | G33: 0 | N33: F | O33: =AND(Калькулятор!$C$9='ставки за 1кВт'!$E$4,Калькулятор!$C$8>150) -> FALSE
A34: 3.1.2. | B34: Многожильные | N34: H | O34: =AND(Калькулятор!$C$9='ставки за 1кВт'!$F$4,Калькулятор!$C$8<150) -> FALSE
A35: 3.1.2.1. | B35: Кабели с резиновой и пластмассовой изоляцией
A36: 3.1.2.1.1 | B36: Сечение провода - до 50 мм2 включительно
B37: 0,4 кВ и ниже | C37: 2916.6 | E37: 1145.95 | G37: 0
B38: 1-20 кВ | C38: 1042.34 | E38: - | G38: 0
A39: 3.1.2.1.2 | B39: Сечение провода - от 50 мм2 до 100 мм2 включительно
B40: 0,4 кВ и ниже | C40: 4289.75 | E40: 6344.98 | G40: 0
B41: 1-20 кВ | C41: 3741.45 | E41: - | G41: 0
A42: 3.1.2.1.3 | B42: Сечение провода - от 100 до 200 мм2 включительно
B43: 0,4 кВ и ниже | C43: 2270.79 | E43: 3612.41 | G43: 0
B44: 1-20 кВ | C44: 2326.61 | E44: - | G44: 0
A45: 3.1.2.1.4 | B45: Сечение провода - от 200 до 500 мм2 включительно
B46: 0,4 кВ и ниже | C46: 4378.34 | E46: - | G46: 0
B47: 1-20 кВ | C47: 1238.23 | E47: - | G47: 0
A48: 3.1.2.2. | B48: Кабели с бумажной изоляцией
A49: 3.1.2.2.1 | B49: Сечение провода - до 50 мм2 включительно
B50: 0,4 кВ и ниже | C50: 5879.3 | E50: 17730.1 | G50: 0
B51: 1-20 кВ | C51: 5154.47 | E51: 8195.53 | G51: 0
A52: 3.1.2.2.2 | B52: Сечение провода - от 50 мм2 до 100 мм2 включительно
B53: 0,4 кВ и ниже | C53: - | E53: - | G53: 0
B54: 1-20 кВ | C54: 1565.87 | E54: 5406.83 | G54: 0
A55: 3.1.2.2.3 | B55: Сечение провода - от 100 до 200 мм2 включительно
B56: 0,4 кВ и ниже | C56: 15911.51 | E56: 2745.69 | G56: 0
B57: 1-20 кВ | C57: 2626.21 | E57: 715.2 | G57: 0
A58: 3.1.2.2.4 | B58: Сечение провода - от 200 до 500 мм2 включительно
B59: 0,4 кВ и ниже | C59: - | E59: - | G59: 0
B60: 1-20 кВ | C60: 7254.05 | E60: - | G60: 0
A61: 3.5. | B61: Способ прокладки - в галереях и эстакадах
A62: 3.5.1. | B62: Одножильные
A63: 3.5.1.1. | B63: Кабели с резиновой и пластмассовой изоляцией
A64: 3.5.1.1.4 | B64: Сечение провода - от 200м2 до 500 мм2 включительно
B65: 1-20 кВ | C65: - | E65: - | G65: 0
A66: 3.5.2. | B66: Многожильные | G66: 0
A67: 3.5.2.1. | B67: Кабели с резиновой и пластмассовой изоляцией | G67: 0
A68: 3.5.2.1.1 | B68: Сечение провода - до 50 мм2 включительно
B69: 0,4 кВ и ниже | C69: - | E69: - | G69: 0
A70: 3.5.2.2. | B70: Кабели с бумажной изоляцией
A71: 3.5.2.2.1. | B71: Сечение провода - до 50 мм2 включительно
B72: 1-20 кВ | C72: 3043.17 | E72: - | G72: 0
A73: 3.5.2.2.3. | B73: Сечение провода - от 100 до 200 мм2 включительно
B74: 1-20 кВ | C74: - | E74: - | G74: 0
A75: 3.6. | B75: Способ прокладки - горизонтальное наклонное бурение
A76: 3.6.1. | B76: Одножильные
A77: 3.6.1.1. | B77: Кабели с резиновой и пластмассовой изоляцией
A78: 3.6.1.1.1 | B78: Сечение провода - до 50 мм2 включительно
B79: 1-20 кВ | C79: - | E79: - | G79: 0
A80: 3.6.1.1.2 | B80: Сечение провода - от 50 мм2 до 100 мм2 включительно
B81: 1-20 кВ | C81: 844.58 | E81: - | G81: 0
A82: 3.6.1.1.3 | B82: Сечение провода - от 100 до 200 мм2 включительно
B83: 1-20 кВ | C83: 2005.04 | E83: - | G83: 0
A84: 3.6.1.1.4 | B84: Сечение провода - от 200 до 500 мм2 включительно
B85: 1-20 кВ | C85: 167.91 | E85: - | G85: 0
A86: 3.6.1.2 | B86: Кабели с бумажной изоляцией
A87: 3.6.1.2.2. | B87: Сечение провода - от 50 мм2 до 100 мм2 включительно
B88: 1-20 кВ | C88: 330.98 | E88: - | G88: 0
A89: 3.6.1.2.4. | B89: Сечение провода - от 200 мм2 до 500 мм2 включительно
B90: 1-20 кВ | C90: 425.25 | E90: - | G90: 0
A91: 3.6.2. | B91: Многожильные
A92: 3.6.2.1. | B92: Кабели с резиновой и пластмассовой изоляцией
A93: 3.6.2.1.1 | B93: Сечение провода - до 50 мм2 включительно
B94: 0,4 кВ и ниже | C94: 5393.22 | E94: - | G94: 0
B95: 1-20 кВ | C95: 11253.42 | E95: - | G95: 0
A96: 3.6.2.1.2 | B96: Сечение провода - от 50 мм2 до 100 мм2 включительно
B97: 0,4 кВ и ниже | C97: 889.28 | E97: - | G97: 0
B98: 1-20 кВ | C98: 6651.31 | E98: - | G98: 0
A99: 3.6.2.1.3 | B99: Сечение провода - от 100 до 200 мм2 включительно
B100: 0,4 кВ и ниже | C100: 1744.25 | E100: - | G100: 0
B101: 1-20 кВ | C101: 4643.72 | E101: - | G101: 0
A102: 3.6.2.1.4 | B102: Сечение провода - от 200 до 500 мм2 включительно
B103: 0,4 кВ и ниже | C103: 3200.31 | E103: - | G103: 0
B104: 1-20 кВ | C104: 132.46 | E104: - | G104: 0
A105: 3.6.2.2. | B105: Кабели с бумажной изоляцией
A106: 3.6.2.2.1 | B106: Сечение провода - до 50 мм2 включительно
B107: 1-20 кВ | C107: 3377.81 | E107: - | G107: 0
A108: 3.6.2.2.2 | B108: Сечение провода - от 50 мм2 до 100 мм2 включительно
B109: 1-20 кВ | C109: 5562.29 | E109: - | G109: 0
A110: 3.6.2.2.3 | B110: Сечение провода - от 100 до 200 мм2 включительно
B111: 0,4 кВ и ниже | C111: 25.76 | E111: - | G111: 0
B112: 1-20 кВ | C112: 2644.3 | E112: - | G112: 0
A113: 3.6.2.2.4 | B113: Сечение провода - от 200 до 500 мм2 включительно
B114: 1-20 кВ | C114: 3378.07 | E114: - | G114: 0

Sheet C4_пункты секционирования (hidden)
A1: Ставки за единицу максимальной мощности на покрытие расходов сетевой организации на строительство пунктов секционирования (реклоузеров, распределительных пунктов, переключательных пунктов)
B5: Наименование стандартизированной тарифной ставки | C5: Размер ставки в отношении заявителей, осуществляющих технологическое присоединение энергопринимающих устройств свыше 150 кВт (на территориях городских населенных пунктов), руб./кВт | D5: наличие | E5: Размер ставки в отношении заявителей, осуществляющих технологическое присоединение энергопринимающих устройств свыше 150 кВт (на территориях, не относящихся к территориям городских населенных пунктов), руб./кВт | F5: наличие | G5: Размер ставки в отношении заявителей, осуществляющих технологическое присоединение энергопринимающих устройств не более 150 кВт, руб./кВт | H5: наличие
A6: № п/п | B6: 1 | C6: 2 | D6: 3 | E6: 4 | F6: 5 | G6: 6 | H6: 7
A7: 4 | B7: С4 - Ставка за единицу максимальной мощности на покрытие расходов сетевой организации на строительство пунктов секционирования (реклоузеров, распределительных пунктов, переключательных пунктов)
A8: 4.1 | B8: Реклоузер
A9: 4.1.3 | B9: Номинальный ток - от 250 А до 500 А включительно
B10: 1 - 20 кВ | C10: 1339.12 | E10: 2877.36 | G10: 0 | M10: =C10*D10 -> 0 | N10: =E10*F10 -> 0 | O10: =IF(H10="да",G10,0) -> 0
A11: 4.1.4 | B11: Номинальный ток - от 500 А до 1000 А включительно
B12: 1 - 20 кВ | C12: 999.22 | E12: 4606.66 | G12: 0 | M12: =C12*D12 -> 0 | N12: =E12*F12 -> 0 | O12: =IF(H12="да",G12,0) -> 0
A13: 4.2 | B13: Распределительные пункты (РП)
A14: 4.2.2 | B14: Номинальный ток - от 100 А до 250 А включительно
B15: 1 - 20 кВ | C15: - | E15: - | G15: 0 | O15: =IF(H15="да",G15,0) -> 0
A16: 4.2.4 | B16: Номинальный ток - от 500 А до 1000 А включительно
B17: 1 - 20 кВ | C17: 15426.73 | E17: - | G17: 0 | M17: 0 | O17: =IF(H17="да",G17,0) -> 0
M18: =SUM(M10:M17) -> 0 | N18: =SUM(N10:N17) -> 0 | O18: =SUM(O10:O17) -> 0
J20: 1 | K20: =SUM(IF(D10="да",C10*Калькулятор!C8,0),IF(D12="да",C12*Калькулятор!C8,0),IF(D17="да",C17*Калькулятор!C8,0)) -> 0
J21: 2 | K21: =SUM(IF(F10="да",E10*Калькулятор!C8,0),IF(F12="да",E12*Калькулятор!C8,0)) -> 0
J22: 3 | K22: =SUM(IF(H10="да",G10*Калькулятор!C8,0),IF(H12="да",G12*Калькулятор!C8,0),IF(H15="да",G15*Калькулятор!C8,0),IF(H17="да",G17*Калькулятор!C8,0)) -> 0

Sheet С5_ТП_1 кВт (hidden)
A1: Ставки за единицу максимальной мощности на покрытие расходов сетевой организации на строительство трансформаторных подстанций подстанций (ТП), за исключением распределительных трансформаторных подстанций (РТП), с уровнем напряжения до 35 кВ
B3: Наименование стандартизированной тарифной ставки | C3: Размер ставки в отношении заявителей, осуществляющих технологическое присоединение энергопринимающих устройств свыше 150 кВт (на территориях городских населенных пунктов), руб./кВт | D3: наличие | E3: Размер ставки в отношении заявителей, осуществляющих технологическое присоединение энергопринимающих устройств свыше 150 кВт (на территориях, не относящихся к территориям городских населенных пунктов), руб./кВт | F3: наличие | G3: Размер ставки в отношении заявителей, осуществляющих технологическое присоединение энергопринимающих устройств не более 150 кВт, руб./кВт | H3: наличие
A4: № п/п | B4: 1 | C4: 2 | D4: 3 | E4: 4 | F4: 5 | G4: 6 | H4: 7
A5: 5 | B5: С5 - Ставка за единицу максимальной мощности на покрытие расходов сетевой организации на строительство трансформаторных подстанций (ТП), за исключением распределительных трансформаторных подстанций (РТП), с уровнем напряжения до 35 кВ
A6: 5.1. | B6: Однотрансформаторные
A7: 5.1.1 | B7: Трансформаторная мощность - до 25 кВА включительно | C7: 11708.71 | E7: 18798.73 | G7: 0 | L7: =C7*D7 -> 0 | M7: =E7*F7 -> 0 | N7: =G7*H7 -> 0 | Q7: 1 | R7: =SUM(IF(D7="да",C7*Калькулятор!C8,0),IF(D8="да",C8*Калькулятор!C8,0),IF(D9="да",C9*Калькулятор!C8,0),IF(D10="да",C10*Калькулятор!C8,0),IF(D11="да",C11*Калькулятор!C8,0),IF(D12="да",C12*Калькулятор!C8,0),IF(D14="да",C14*Калькулятор!C8,0),IF(D15="да",C15*Калькулятор!C8,0),IF(D16="да",C16*Калькулятор!C8,0),IF(D17="да",C17*Калькулятор!C8,0)) -> 0
A8: 5.1.2 | B8: Трансформаторная мощность - от 25 кВА до 100 кВА включительно | C8: 7164.58 | E8: 11170.56 | G8: 0 | L8: =C8*D8 -> 0 | M8: =E8*F8 -> 0 | N8: =G8*H8 -> 0 | Q8: 2 | R8: =SUM(IF(F7="да",E7*Калькулятор!C8,0),IF(F8="да",E8*Калькулятор!C8,0),IF(F9="да",E9*Калькулятор!C8,0),IF(F10="да",E10*Калькулятор!C8,0),IF(F11="да",E11*Калькулятор!C8,0),IF(F12="да",E12*Калькулятор!C8,0),IF(F14="да",E14*Калькулятор!C8,0),IF(F15="да",E15*Калькулятор!C8,0),IF(F16="да",E16*Калькулятор!C8,0),IF(F17="да",E17*Калькулятор!C8,0)) -> 0
A9: 5.1.3 | B9: Трансформаторная мощность - от 100 кВА до 250 кВА включительно | C9: 4581.62 | E9: 4699.69 | G9: 0 | L9: =C9*D9 -> 0 | M9: 0 | N9: 0 | Q9: 3 | R9: =SUM(IF(H7="да",G7*Калькулятор!C8,0),IF(H8="да",G8*Калькулятор!C8,0),IF(H9="да",G9*Калькулятор!C8,0),IF(H10="да",G10*Калькулятор!C8,0),IF(H11="да",G11*Калькулятор!C8,0),IF(H12="да",G12*Калькулятор!C8,0),IF(H14="да",G14*Калькулятор!C8,0),IF(H15="да",G15*Калькулятор!C8,0),IF(H16="да",G16*Калькулятор!C8,0),IF(H17="да",G17*Калькулятор!C8,0)) -> 0
A10: 5.1.4 | B10: Трансформаторная мощность - от 250 кВА до 500 кВА включительно | C10: 4418.23 | E10: 11202.74 | G10: 0 | L10: 0 | M10: 0 | N10: 0
A11: 5.1.5 | B11: Трансформаторная мощность - от 500 кВА до 900 кВА включительно | C11: 6132.35 | E11: 2496.91 | G11: 0 | L11: 0 | M11: 0 | N11: 0
A12: 5.1.6 | B12: Трансформаторная мощность - свыше 1000 кВА | C12: 1276.52 | E12: 2076.06 | G12: 0 | L12: 0 | M12: 0 | N12: 0
A13: 5.2. | B13: Двухтрансформаторные и более
A14: 5.2.3 | B14: Трансформаторная мощность - от 100 кВА до 250 кВА включительно | C14: 12632.67 | E14: 7776.59 | G14: 0 | L14: =IF(D14="да",C14,0) -> 0 | M14: =IF(F14="да",E14,0) -> 0 | N14: =IF(H14="да",G14,0) -> 0
A15: 5.2.4 | B15: Трансформаторная мощность - от 250 кВА до 500 кВА включительно | C15: 15515.45 | E15: 7495.66 | G15: 0 | L15: 0 | M15: 0 | N15: 0
A16: 5.2.5 | B16: Трансформаторная мощность - от 500 кВА до 900 кВА включительно | C16: 13564.92 | E16: 4978.96 | G16: 0 | L16: 0 | M16: 0 | N16: 0
A17: 5.2.6 | B17: Трансформаторная мощность - свыше 1000 кВА | C17: 5772.91 | E17: 3055.94 | G17: 0 | L17: 0 | M17: 0 | N17: 0
L19: =SUM(L7:L17) -> 0 | M19: =SUM(M7:M17) -> 0 | N19: =SUM(N7:N17) -> 0

Sheet С6_РТП_1 кВт (hidden)
A1: Ставки за единицу максимальной мощности на покрытие расходов сетевой организации на строительство распределительных трансформаторных подстанций (РТП) с уровнем напряжения до 35 кВ
B3: Наименование стандартизированной тарифной ставки | C3: Размер ставки в отношении заявителей, осуществляющих технологическое присоединение энергопринимающих устройств свыше 150 кВт (на территориях городских населенных пунктов), руб./кВт | D3: наличие | E3: Размер ставки в отношении заявителей, осуществляющих технологическое присоединение энергопринимающих устройств свыше 150 кВт (на территориях, не относящихся к территориям городских населенных пунктов), руб./кВт | F3: наличие | G3: Размер ставки в отношении заявителей, осуществляющих технологическое присоединение энергопринимающих устройств не более 150 кВт, руб./кВт | H3: наличие
A4: № п/п | B4: 1 | C4: 2 | D4: 3 | E4: 4 | F4: 5 | G4: 6 | H4: 7
A5: 6 | B5: С6 - Ставка за единицу максимальной мощности на покрытие расходов сетевой организации на строительство распределительных трансформаторных подстанции (РТП) с уровнем напряжения до 35 кВ
A6: 6.1. | B6: Однотрансформаторные
A7: 6.1.2 | B7: Трансформаторная мощность - от 25 кВА до 100 кВА включительно | C7: 64128.75 | E7: 64128.75 | G7: 0 | K7: =C7*D7 -> 0 | L7: =E7*F7 -> 0 | M7: =IF(H7="да",G7,0) -> 0
A8: 6.2. | B8: Двухтрансформаторные и более
A9: 6.2.6 | B9: Трансформаторная мощность - свыше 1000 кВА | C9: 4285.86 | E9: 4285.86 | G9: 0 | K9: =C9*D9 -> 0 | L9: =E9*F9 -> 0 | M9: =IF(H9="да",G9,0) -> 0
K10: =SUM(K7:K9) -> 0 | L10: =SUM(L7:L9) -> 0 | M10: 0
J12: 1 | K12: =SUM(IF(D7="да",C7*Калькулятор!C8,0),IF(D9="да",C9*Калькулятор!C8,0)) -> 0
J13: 2 | K13: =SUM(IF(F7="да",E7*Калькулятор!C8,0),IF(F9="да",E9*Калькулятор!C8,0)) -> 0
J14: 3 | K14: =SUM(IF(H7="да",G7*Калькулятор!C8,0),IF(H9="да",G9*Калькулятор!C8,0)) -> 0

Sheet С7_ИП_1 кВт (hidden)
A1: Ставки за единицу максимальной мощности на покрытие расходов сетевой организации на строительство подстанций уровнем напряжения 35 кВ и выше (ПС)
B5: Наименование стандартизированной тарифной ставки | C5: Размер ставки в отношении заявителей, осуществляющих технологическое присоединение энергопринимающих устройств свыше 150 кВт (на территориях городских населенных пунктов), руб./кВт | D5: наличие | E5: Размер ставки в отношении заявителей, осуществляющих технологическое присоединение энергопринимающих устройств свыше 150 кВт (на территориях, не относящихся к территориям городских населенных пунктов), руб./кВт | F5: наличие | G5: Размер ставки в отношении заявителей, осуществляющих технологическое присоединение энергопринимающих устройств не более 150 кВт, руб./кВт | H5: наличие
A6: № п/п | B6: 1 | C6: 2 | D6: 3 | E6: 4 | F6: 5 | G6: 6 | H6: 7
A7: 7 | B7: С7 - Ставка за единицу максимальной мощности на покрытие расходов сетевой организации на строительство подстанций уровнем напряжения 35 кВ и выше (ПС)
A8: 7.2. | B8: Двухтрансформаторные подстанции 110/6 (10) кВ | C8: 14703.84 | E8: 11991.69 | G8: 0
K9: 1 | L9: =SUM(IF(D8="да",C8*Калькулятор!C8,0)) -> 0
K10: 2 | L10: =SUM(IF(F8="да",E8*Калькулятор!C8,0)) -> 0
K11: 3 | L11: =SUM(IF(H8="да",G8*Калькулятор!C8,0)) -> 0

Sheet С8_1 кВт (hidden)
A1: Ставки за единицу максимальной мощности на покрытие расходов сетевой организации на строительство воздушных линий электропередачи
B3: Наименование стандартизированной тарифной ставки | C3: Размер ставки в отношении заявителей, осуществляющих технологическое присоединение энергопринимающих устройств свыше 150 кВт (на территориях городских населенных пунктов), рублей/кВт | D3: наличие | E3: Размер ставки в отношении заявителей, осуществляющих технологическое присоединение энергопринимающих устройств свыше 150 кВт (на территориях, не относящихся к территориям городских населенных пунктов), рублей /кВт | F3: наличие | G3: Размер ставки в отношении заявителей, осуществляющих технологическое присоединение энергопринимающих устройств не более 150 кВт, рублей/кВт | H3: наличие
A4: № п/п | B4: 1 | C4: 2 | D4: 3 | E4: 4 | F4: 5 | G4: 6 | H4: 7
A5: 8 | B5: С2 - Ставка за единицу максимальной мощности на покрытие расходов сетевой организации на обеспечение средствами коммерческого учета электрической энергии (мощности)
A6: 8.1. | B6: однофазные
A7: 8.1.1. | B7: прямого включения
B8: 0,4 кВ и ниже без ТТ | C8: 2934.57 | E8: 2934.57 | G8: 2934.57 | K8: 1 | L8: =SUM(IF(D8="да",C8*Калькулятор!C8,0),IF(D11="да",C11*Калькулятор!C8,0),IF(D13="да",C13*Калькулятор!C8,0),IF(D15="да",C15*Калькулятор!C8,0)) -> 0
A9: 8.2. | B9: трехфазные
A10: 8.2.1. | B10: прямого включения | K10: 2 | L10: =SUM(IF(F8="да",E8*Калькулятор!C8,0),IF(F11="да",E11*Калькулятор!C8,0),IF(F13="да",E13*Калькулятор!C8,0),IF(F15="да",E15*Калькулятор!C8,0)) -> 0
B11: 0,4 кВ и ниже без ТТ | C11: 2049.1 | E11: 2049.1 | G11: 2049.1
A12: 8.2.2. | B12: полукосвенного включения | K12: 3 | L12: =SUM(IF(H8="да",G8*Калькулятор!C8,0),IF(H11="да",G11*Калькулятор!C8,0),IF(H13="да",G13*Калькулятор!C8,0),IF(H15="да",G15*Калькулятор!C8,0)) -> 0
B13: 0,4 кВ и ниже с ТТ | C13: 327.02 | E13: 327.02 | G13: 327.02
A14: 8.2.3. | B14: косвенного включения
B15: 1 - 20 кВ | C15: 1587.87 | E15: 1587.87 | G15: 1587.87
